Workbook

Sheet Protocol 1 (5nm)
A1: =IF(Data!$AE$2="DE","Messprotokoll",IF(Data!$AE$2="UK","Measurement protocol",IF(Data!$AE$2="FR","Rapport de mesure","Language Error"))) -> Measurement protocol
A4: =IF(Data!$AE$2 = "DE", "Prüfling:", IF(Data!$AE$2 = "UK","Test object:",IF(Data!$AE$2="FR","Objet testé:","Language Error"))) -> Test object: | N4: =IF(Data!$AE$2="DE","Hersteller",IF(Data!$AE$2="UK","Manufacturer",IF(Data!$AE$2="FR","Fabricant","Language Error"))) -> Manufacturer | BK4: =IF(Data!$AE$2="DE","Messdatei:",IF(Data!$AE$2="UK","Measurement file:",IF(Data!$AE$2="FR","Fichier de mesure:","Language Error"))) -> Measurement file: | CG4: =Data!Q18 -> Measured
N5: =IF(Data!$AE$2="DE","Typ",IF(Data!$AE$2="UK","Type",IF(Data!$AE$2="FR","Type","Language Error"))) -> Type | BK5: =IF(Data!$AE$2="DE","Datum der Messung:",IF(Data!$AE$2="UK","Date of measurement:",IF(Data!$AE$2="FR","Date de mesure:","Language Error"))) -> Date of measurement: | CG5: =Data!Q23 -> 22.04.2024
N6: =IF(Data!$AE$2="DE","Modell",IF(Data!$AE$2="UK","Model",IF(Data!$AE$2="FR","Article","Language Error"))) -> Model | BK6: =IF(Data!$AE$2="DE","Uhrzeit der Messung:",IF(Data!$AE$2="UK","Time of measurement:",IF(Data!$AE$2="FR","Heure de mesure:","Language Error"))) -> Time of measurement: | CG6: =Data!Q21 -> 14:26:00
D23: R1 | I23: = | K23: =Data!K2 -> 96.71 | R23: Ra | W23: = | Y23: =Data!K1 -> 97.45 | AI23: =IF(Data!$AE$2="DE","Beleuchtungsstärke",IF(Data!$AE$2="UK","Illuminance",IF(Data!$AE$2="FR","Illuminance","Language Error"))) -> Illuminance | BN23: =Data!K33 -> 618.2 | CI23: =IF(CI24="x","CIE1931",IF(CI24="u'","CIE1976",IF(CI24="u","CIE1960",""))) -> CIE1931
D24: R2 | I24: = | K24: =Data!K3 -> 98.33 | R24: Re | W24: = | Y24: =Data!Q27 -> 96.51 | AI24: Ee | BN24: =Data!Q25 -> 2.971 | CI24: =Data!J23 -> x | CL24: = | CN24: =Data!K23 -> 0.3186
D25: R3 | I25: = | K25: =Data!K4 -> 99.17 | R25: GAI | W25: = | Y25: =Data!Q28 -> 732 | AI25: LER | BN25: =Data!Q26 -> 208.0780882 | CI25: =Data!J24 -> y | CL25: = | CN25: =Data!K24 -> 0.3401
D26: R4 | I26: = | K26: =Data!K5 -> 96.5
D27: R5 | I27: = | K27: =Data!K6 -> 96.93 | R27: TLCI | W27: = | Y27: =Data!Q30 -> 100 | AI27: =IF(Data!$AE$2 = "DE", "Ähnlichste Farbtemperatur (CCT)", IF(Data!$AE$2 = "UK","Correlated Color Temperature (CCT)",IF(Data!$AE$2="FR","Temp. de couleur proximale (CCT)","Language Error"))) -> Correlated Color Temperature (CCT) | BN27: =Data!K30 -> 6137 | CI27: =IF(CI28="x","CIE1931",IF(CI28="u'","CIE1976",IF(CI28="u","CIE1960",""))) -> CIE1976
D28: R6 | I28: = | K28: =Data!K7 -> 98.08 | AI28: Duv | BN28: =Data!K31 -> 0.0059 | CI28: =Data!J25 -> u' | CL28: = | CN28: =Data!K25 -> 0.1978
D29: R7 | I29: = | K29: =Data!K8 -> 98.45 | R29: PPFD [µmol/m²s] | CI29: =Data!J26 -> v' | CL29: = | CN29: =Data!K26 -> 0.475
D30: R8 | I30: = | K30: =Data!K9 -> 95.4 | AI30: =IF(Data!$AE$2 = "DE", "Farbreinheit",IF(Data!$AE$2 = "UK","Saturation",IF(Data!$AE$2="FR","Saturation","Language Error"))) -> Saturation | BN30: =Data!K39 -> 4.6
D31: R9 | I31: = | K31: =Data!K10 -> 86.96 | R31: =Data!K142 -> 10.76 | CI31: =IF(CI32="x","CIE1931",IF(CI32="u'","CIE1976",IF(CI32="u","CIE1960",""))) -> CIE1960
D32: R10 | I32: = | K32: =Data!K11 -> 96.71 | AI32: =IF(Data!$AE$2 = "DE", "Dominante Wellenlänge", IF(Data!$AE$2 = "UK", "Dominant wavelength",IF(Data!$AE$2="FR","Longueur d'onde dominante (λD)","Language Error"))) -> Dominant wavelength | BN32: =Data!K40 & " nm" -> 495 nm | CI32: =Data!J27 -> u | CL32: = | CN32: =Data!K27 -> 0.1978
D33: R11 | I33: = | K33: =Data!K12 -> 96.02 | AI33: =IF(Data!$AE$2 = "DE", "Peak-Wellenlänge",IF(Data!$AE$2 = "UK", "Peak wavelength",IF(Data!$AE$2="FR","Pic courbe spectrale (λP)","Language Error"))) -> Peak wavelength | BN33: =Data!K20 & " nm" -> 459 nm | CI33: =Data!J28 -> v | CL33: = | CN33: =Data!K28 -> 0.3167
D34: R12 | I34: = | K34: =Data!K13 -> 96.51
D35: R13 | I35: = | K35: =Data!K14 -> 97.05 | AI35: =IF(Data!$AE$2 = "DE", "Flickerfrequenz", IF(Data!$AE$2 = "UK","Flicker frequency",IF(Data!$AE$2="FR","Fréquence flicker","Language Error"))) -> Flicker frequency | BN35: =Data!K36 -> 0 | CI35: TM30
D36: R14 | I36: = | K36: =Data!K15 -> 99.3 | AI36: =IF(Data!$AE$2 = "DE", "Prozent Flicker", IF(Data!$AE$2 = "UK","Percent Flicker",IF(Data!$AE$2="FR","% flicker","Language Error"))) -> Percent Flicker | BN36: =Data!K37 -> 1.052689 | CI36: Rf | CN36: = | CP36: =Data!K43 -> 0
D37: R15 | I37: = | K37: =Data!K16 -> 95.47 | AI37: =IF(Data!$AE$2 = "DE", "Flickerindex", IF(Data!$AE$2 = "UK","Flicker index",IF(Data!$AE$2="FR","Index flicker","Language Error"))) -> Flicker index | BN37: =Data!K35 -> 0.001261 | CI37: Rg | CN37: = | CP37: =Data!K44 -> 0
C40: [nm] | I40: mW/m²/nm | Q40: [nm] | W40: mW/m²/nm | AE40: [nm] | AK40: mW/m²/nm | AS40: [nm] | AY40: mW/m²/nm | BG40: [nm] | BM40: mW/m²/nm | BU40: [nm] | CA40: mW/m²/nm | CI40: [nm] | CO40: mW/m²/nm
C41: =Data!G1 -> 380 | I41: =Data!H1 -> 2.266782 | Q41: =Data!G13 -> 440 | W41: =Data!H13 -> 7.857132 | AE41: =Data!G25 -> 500 | AK41: =Data!H25 -> 9.110776 | AS41: =Data!G37 -> 560 | AY41: =Data!H37 -> 8.7054 | BG41: =Data!G49 -> 620 | BM41: =Data!H49 -> 7.38654 | BU41: =Data!G61 -> 680 | CA41: =Data!H61 -> 6.349692 | CI41: =Data!G73 -> 740 | CO41: =Data!H73 -> 7.451564
C42: =Data!G2 -> 385 | I42: =Data!H2 -> 2.477966 | Q42: =Data!G14 -> 445 | W42: =Data!H14 -> 8.469516 | AE42: =Data!G26 -> 505 | AK42: =Data!H26 -> 9.107321 | AS42: =Data!G38 -> 565 | AY42: =Data!H38 -> 8.465311 | BG42: =Data!G50 -> 625 | BM42: =Data!H50 -> 7.204806 | BU42: =Data!G62 -> 685 | CA42: =Data!H62 -> 5.958326 | CI42: =Data!G74 -> 745 | CO42: =Data!H74 -> 7.643743
C43: =Data!G3 -> 390 | I43: =Data!H3 -> 2.830561 | Q43: =Data!G15 -> 450 | W43: =Data!H15 -> 9.062076 | AE43: =Data!G27 -> 510 | AK43: =Data!H27 -> 9.049134 | AS43: =Data!G39 -> 570 | AY43: =Data!H39 -> 8.317036 | BG43: =Data!G51 -> 630 | BM43: =Data!H51 -> 7.072663 | BU43: =Data!G63 -> 690 | CA43: =Data!H63 -> 5.766793 | CI43: =Data!G75 -> 750 | CO43: =Data!H75 -> 7.522743
C44: =Data!G4 -> 395 | I44: =Data!H4 -> 3.397185 | Q44: =Data!G16 -> 455 | W44: =Data!H16 -> 9.385198 | AE44: =Data!G28 -> 515 | AK44: =Data!H28 -> 8.892465 | AS44: =Data!G40 -> 575 | AY44: =Data!H40 -> 8.171592 | BG44: =Data!G52 -> 635 | BM44: =Data!H52 -> 7.087899 | BU44: =Data!G64 -> 695 | CA44: =Data!H64 -> 6.005594 | CI44: =Data!G76 -> 755 | CO44: =Data!H76 -> 6.633342
C45: =Data!G5 -> 400 | I45: =Data!H5 -> 4.636063 | Q45: =Data!G17 -> 460 | W45: =Data!H17 -> 9.541563 | AE45: =Data!G29 -> 520 | AK45: =Data!H29 -> 8.797625 | AS45: =Data!G41 -> 580 | AY45: =Data!H41 -> 8.10016 | BG45: =Data!G53 -> 640 | BM45: =Data!H53 -> 7.041917 | BU45: =Data!G65 -> 700 | CA45: =Data!H65 -> 6.268607 | CI45: =Data!G77 -> 760 | CO45: =Data!H77 -> 5.164568
C46: =Data!G6 -> 405 | I46: =Data!H6 -> 5.753686 | Q46: =Data!G18 -> 465 | W46: =Data!H18 -> 9.447047 | AE46: =Data!G30 -> 525 | AK46: =Data!H30 -> 8.989483 | AS46: =Data!G42 -> 585 | AY46: =Data!H42 -> 8.023732 | BG46: =Data!G54 -> 645 | BM46: =Data!H54 -> 6.898617 | BU46: =Data!G66 -> 705 | CA46: =Data!H66 -> 6.481359 | CI46: =Data!G78 -> 765 | CO46: =Data!H78 -> 5.17249
C47: =Data!G7 -> 410 | I47: =Data!H7 -> 6.132161 | Q47: =Data!G19 -> 470 | W47: =Data!H19 -> 9.376203 | AE47: =Data!G31 -> 530 | AK47: =Data!H31 -> 9.111626 | AS47: =Data!G43 -> 590 | AY47: =Data!H43 -> 7.780416 | BG47: =Data!G55 -> 650 | BM47: =Data!H55 -> 6.764739 | BU47: =Data!G67 -> 710 | CA47: =Data!H67 -> 6.58508 | CI47: =Data!G79 -> 770 | CO47: =Data!H79 -> 6.48655
C48: =Data!G8 -> 415 | I48: =Data!H8 -> 6.739672 | Q48: =Data!G20 -> 475 | W48: =Data!H20 -> 9.401905 | AE48: =Data!G32 -> 535 | AK48: =Data!H32 -> 9.191043 | AS48: =Data!G44 -> 595 | AY48: =Data!H44 -> 7.759864 | BG48: =Data!G56 -> 655 | BM48: =Data!H56 -> 6.629961 | BU48: =Data!G68 -> 715 | CA48: =Data!H68 -> 6.313056 | CI48: =Data!G80 -> 775 | CO48: =Data!H80 -> 7.151005
C49: =Data!G9 -> 420 | I49: =Data!H9 -> 6.924517 | Q49: =Data!G21 -> 480 | W49: =Data!H21 -> 9.388743 | AE49: =Data!G33 -> 540 | AK49: =Data!H33 -> 9.068149 | AS49: =Data!G45 -> 600 | AY49: =Data!H45 -> 7.767684 | BG49: =Data!G57 -> 660 | BM49: =Data!H57 -> 6.627166 | BU49: =Data!G69 -> 720 | CA49: =Data!H69 -> 6.055872 | CI49: =Data!G81 -> 780 | CO49: =Data!H81 -> 7.171795
C50: =Data!G10 -> 425 | I50: =Data!H10 -> 6.893627 | Q50: =Data!G22 -> 485 | W50: =Data!H22 -> 9.154291 | AE50: =Data!G34 -> 545 | AK50: =Data!H34 -> 9.013476 | AS50: =Data!G46 -> 605 | AY50: =Data!H46 -> 7.731814 | BG50: =Data!G58 -> 665 | BM50: =Data!H58 -> 6.706842 | BU50: =Data!G70 -> 725 | CA50: =Data!H70 -> 6.183983
C51: =Data!G11 -> 430 | I51: =Data!H11 -> 6.746419 | Q51: =Data!G23 -> 490 | W51: =Data!H23 -> 9.029051 | AE51: =Data!G35 -> 550 | AK51: =Data!H35 -> 9.01221 | AS51: =Data!G47 -> 610 | AY51: =Data!H47 -> 7.620013 | BG51: =Data!G59 -> 670 | BM51: =Data!H59 -> 6.675735 | BU51: =Data!G71 -> 730 | CA51: =Data!H71 -> 6.61534
C52: =Data!G12 -> 435 | I52: =Data!H12 -> 7.165364 | Q52: =Data!G24 -> 495 | W52: =Data!H24 -> 9.191137 | AE52: =Data!G36 -> 555 | AK52: =Data!H36 -> 8.875074 | AS52: =Data!G48 -> 615 | AY52: =Data!H48 -> 7.450061 | BG52: =Data!G60 -> 675 | BM52: =Data!H60 -> 6.562427 | BU52: =Data!G72 -> 735 | CA52: =Data!H72 -> 7.121744
A54: =IF(Data!$AE$2="DE","Firma",IF(Data!$AE$2="UK","Company",IF(Data!$AE$2="FR","Société","Language Error"))) -> Company
A55: =IF(Data!$AE$2="DE","Adresse",IF(Data!$AE$2="UK","Address",IF(Data!$AE$2="FR","Adresse","Language Error"))) -> Address
A56: =IF(Data!$AE$2="DE","PLZ Ort",IF(Data!$AE$2="UK","ZIP City",IF(Data!$AE$2="FR","Code postal Ville","Language Error"))) -> ZIP City
A58: =IF(Data!$AE$2="DE","Prüfort,",IF(Data!$AE$2="UK","Test location,",IF(Data!$AE$2="FR","Lieu de rapport, ","Language Error"))) -> Test location, | P58: =IF(Data!$AE$2="DE","Datum",IF(Data!$AE$2="UK","Date",IF(Data!$AE$2="FR","Date","Language Error"))) -> Date | BL58: =IF(Data!$AE$2="DE","Vorname, Nachname Prüfer",IF(Data!$AE$2="UK","First, last name of inspector",IF(Data!$AE$2="FR","Prénom Nom du testeur","Language Error"))) -> First, last name of inspector | CG58: =IF(Data!$AE$2="DE","Telefonnummer",IF(Data!$AE$2="UK","Phone number",IF(Data!$AE$2="FR","N° téléphone","Language Error"))) -> Phone number

Sheet Protocol 2 (native)
A1: =IF(Data!$AE$2="DE","Messprotokoll",IF(Data!$AE$2="UK","Measurement protocol",IF(Data!$AE$2="FR","Rapport de mesure","Language Error"))) -> Measurement protocol
A4: =IF(Data!$AE$2 = "DE", "Prüfling:", IF(Data!$AE$2 = "UK","Test object:",IF(Data!$AE$2="FR","Objet testé:","Language Error"))) -> Test object: | N4: ='Protocol 1 (5nm)'!N4:BG4 -> Manufacturer | BK4: =IF(Data!$AE$2="DE","Messdatei:",IF(Data!$AE$2="UK","Measurement file:",IF(Data!$AE$2="FR","Fichier de mesure:","Language Error"))) -> Measurement file: | CG4: =Data!Q18 -> Measured
N5: ='Protocol 1 (5nm)'!N5:BG5 -> Type | BK5: =IF(Data!$AE$2="DE","Datum der Messung:",IF(Data!$AE$2="UK","Date of measurement:",IF(Data!$AE$2="FR","Date de mesure:","Language Error"))) -> Date of measurement: | CG5: =Data!Q23 -> 22.04.2024
N6: ='Protocol 1 (5nm)'!N6:BG6 -> Model | BK6: =IF(Data!$AE$2="DE","Uhrzeit der Messung:",IF(Data!$AE$2="UK","Time of measurement:",IF(Data!$AE$2="FR","Heure de mesure:","Language Error"))) -> Time of measurement: | CG6: =Data!Q21 -> 14:26:00
B22: [nm] | G22: mW/m²/nm | P22: [nm] | U22: mW/m²/nm | AD22: [nm] | AI22: mW/m²/nm | AR22: [nm] | AW22: mW/m²/nm | BF22: [nm] | BK22: mW/m²/nm | BT22: [nm] | BY22: mW/m²/nm | CH22: [nm] | CM22: mW/m²/nm
B23: =Data!$G1 -> 380 | G23: =Data!$H1 -> 2.266782 | P23: =Data!$G32 -> 535 | U23: =Data!$H32 -> 9.191043 | AD23: =IF(Data!$G63="","",Data!$G63) -> 690 | AI23: =IF(Data!$H63="","",Data!$H63) -> 5.766793 | AR23: =IF(Data!$G94="","",Data!$G94) ->  | AW23: =IF(Data!$H94="","",Data!$H94) ->  | BF23: =IF(Data!$G125="","",Data!$G125) ->  | BK23: =IF(Data!$H125="","",Data!$H125) ->  | BT23: =IF(Data!$G156="","",Data!$G156) ->  | BY23: =IF(Data!$H156="","",Data!$H156) ->  | CH23: =IF(Data!$G187="","",Data!$G187) ->  | CM23: =IF(Data!$H187="","",Data!$H187) -> 
B24: =Data!$G2 -> 385 | G24: =Data!$H2 -> 2.477966 | P24: =Data!$G33 -> 540 | U24: =Data!$H33 -> 9.068149 | AD24: =IF(Data!$G64="","",Data!$G64) -> 695 | AI24: =IF(Data!$H64="","",Data!$H64) -> 6.005594 | AR24: =IF(Data!$G95="","",Data!$G95) ->  | AW24: =IF(Data!$H95="","",Data!$H95) ->  | BF24: =IF(Data!$G126="","",Data!$G126) ->  | BK24: =IF(Data!$H126="","",Data!$H126) ->  | BT24: =IF(Data!$G157="","",Data!$G157) ->  | BY24: =IF(Data!$H157="","",Data!$H157) ->  | CH24: =IF(Data!$G188="","",Data!$G188) ->  | CM24: =IF(Data!$H188="","",Data!$H188) -> 
B25: =Data!$G3 -> 390 | G25: =Data!$H3 -> 2.830561 | P25: =Data!$G34 -> 545 | U25: =Data!$H34 -> 9.013476 | AD25: =IF(Data!$G65="","",Data!$G65) -> 700 | AI25: =IF(Data!$H65="","",Data!$H65) -> 6.268607 | AR25: =IF(Data!$G96="","",Data!$G96) ->  | AW25: =IF(Data!$H96="","",Data!$H96) ->  | BF25: =IF(Data!$G127="","",Data!$G127) ->  | BK25: =IF(Data!$H127="","",Data!$H127) ->  | BT25: =IF(Data!$G158="","",Data!$G158) ->  | BY25: =IF(Data!$H158="","",Data!$H158) ->  | CH25: =IF(Data!$G189="","",Data!$G189) ->  | CM25: =IF(Data!$H189="","",Data!$H189) -> 
B26: =Data!$G4 -> 395 | G26: =Data!$H4 -> 3.397185 | P26: =Data!$G35 -> 550 | U26: =Data!$H35 -> 9.01221 | AD26: =IF(Data!$G66="","",Data!$G66) -> 705 | AI26: =IF(Data!$H66="","",Data!$H66) -> 6.481359 | AR26: =IF(Data!$G97="","",Data!$G97) ->  | AW26: =IF(Data!$H97="","",Data!$H97) ->  | BF26: =IF(Data!$G128="","",Data!$G128) ->  | BK26: =IF(Data!$H128="","",Data!$H128) ->  | BT26: =IF(Data!$G159="","",Data!$G159) ->  | BY26: =IF(Data!$H159="","",Data!$H159) ->  | CH26: =IF(Data!$G190="","",Data!$G190) ->  | CM26: =IF(Data!$H190="","",Data!$H190) -> 
B27: =Data!$G5 -> 400 | G27: =Data!$H5 -> 4.636063 | P27: =Data!$G36 -> 555 | U27: =Data!$H36 -> 8.875074 | AD27: =IF(Data!$G67="","",Data!$G67) -> 710 | AI27: =IF(Data!$H67="","",Data!$H67) -> 6.58508 | AR27: =IF(Data!$G98="","",Data!$G98) ->  | AW27: =IF(Data!$H98="","",Data!$H98) ->  | BF27: =IF(Data!$G129="","",Data!$G129) ->  | BK27: =IF(Data!$H129="","",Data!$H129) ->  | BT27: =IF(Data!$G160="","",Data!$G160) ->  | BY27: =IF(Data!$H160="","",Data!$H160) ->  | CH27: =IF(Data!$G191="","",Data!$G191) ->  | CM27: =IF(Data!$H191="","",Data!$H191) -> 
B28: =Data!$G6 -> 405 | G28: =Data!$H6 -> 5.753686 | P28: =Data!$G37 -> 560 | U28: =Data!$H37 -> 8.7054 | AD28: =IF(Data!$G68="","",Data!$G68) -> 715 | AI28: =IF(Data!$H68="","",Data!$H68) -> 6.313056 | AR28: =IF(Data!$G99="","",Data!$G99) ->  | AW28: =IF(Data!$H99="","",Data!$H99) ->  | BF28: =IF(Data!$G130="","",Data!$G130) ->  | BK28: =IF(Data!$H130="","",Data!$H130) ->  | BT28: =IF(Data!$G161="","",Data!$G161) ->  | BY28: =IF(Data!$H161="","",Data!$H161) ->  | CH28: =IF(Data!$G192="","",Data!$G192) ->  | CM28: =IF(Data!$H192="","",Data!$H192) -> 
B29: =Data!$G7 -> 410 | G29: =Data!$H7 -> 6.132161 | P29: =Data!$G38 -> 565 | U29: =Data!$H38 -> 8.465311 | AD29: =IF(Data!$G69="","",Data!$G69) -> 720 | AI29: =IF(Data!$H69="","",Data!$H69) -> 6.055872 | AR29: =IF(Data!$G100="","",Data!$G100) ->  | AW29: =IF(Data!$H100="","",Data!$H100) ->  | BF29: =IF(Data!$G131="","",Data!$G131) ->  | BK29: =IF(Data!$H131="","",Data!$H131) ->  | BT29: =IF(Data!$G162="","",Data!$G162) ->  | BY29: =IF(Data!$H162="","",Data!$H162) ->  | CH29: =IF(Data!$G193="","",Data!$G193) ->  | CM29: =IF(Data!$H193="","",Data!$H193) -> 
B30: =Data!$G8 -> 415 | G30: =Data!$H8 -> 6.739672 | P30: =Data!$G39 -> 570 | U30: =Data!$H39 -> 8.317036 | AD30: =IF(Data!$G70="","",Data!$G70) -> 725 | AI30: =IF(Data!$H70="","",Data!$H70) -> 6.183983 | AR30: =IF(Data!$G101="","",Data!$G101) ->  | AW30: =IF(Data!$H101="","",Data!$H101) ->  | BF30: =IF(Data!$G132="","",Data!$G132) ->  | BK30: =IF(Data!$H132="","",Data!$H132) ->  | BT30: =IF(Data!$G163="","",Data!$G163) ->  | BY30: =IF(Data!$H163="","",Data!$H163) ->  | CH30: =IF(Data!$G194="","",Data!$G194) ->  | CM30: =IF(Data!$H194="","",Data!$H194) -> 
B31: =Data!$G9 -> 420 | G31: =Data!$H9 -> 6.924517 | P31: =Data!$G40 -> 575 | U31: =Data!$H40 -> 8.171592 | AD31: =IF(Data!$G71="","",Data!$G71) -> 730 | AI31: =IF(Data!$H71="","",Data!$H71) -> 6.61534 | AR31: =IF(Data!$G102="","",Data!$G102) ->  | AW31: =IF(Data!$H102="","",Data!$H102) ->  | BF31: =IF(Data!$G133="","",Data!$G133) ->  | BK31: =IF(Data!$H133="","",Data!$H133) ->  | BT31: =IF(Data!$G164="","",Data!$G164) ->  | BY31: =IF(Data!$H164="","",Data!$H164) ->  | CH31: =IF(Data!$G195="","",Data!$G195) ->  | CM31: =IF(Data!$H195="","",Data!$H195) -> 
B32: =Data!$G10 -> 425 | G32: =Data!$H10 -> 6.893627 | P32: =Data!$G41 -> 580 | U32: =Data!$H41 -> 8.10016 | AD32: =IF(Data!$G72="","",Data!$G72) -> 735 | AI32: =IF(Data!$H72="","",Data!$H72) -> 7.121744 | AR32: =IF(Data!$G103="","",Data!$G103) ->  | AW32: =IF(Data!$H103="","",Data!$H103) ->  | BF32: =IF(Data!$G134="","",Data!$G134) ->  | BK32: =IF(Data!$H134="","",Data!$H134) ->  | BT32: =IF(Data!$G165="","",Data!$G165) ->  | BY32: =IF(Data!$H165="","",Data!$H165) ->  | CH32: =IF(Data!$G196="","",Data!$G196) ->  | CM32: =IF(Data!$H196="","",Data!$H196) -> 
B33: =Data!$G11 -> 430 | G33: =Data!$H11 -> 6.746419 | P33: =Data!$G42 -> 585 | U33: =Data!$H42 -> 8.023732 | AD33: =IF(Data!$G73="","",Data!$G73) -> 740 | AI33: =IF(Data!$H73="","",Data!$H73) -> 7.451564 | AR33: =IF(Data!$G104="","",Data!$G104) ->  | AW33: =IF(Data!$H104="","",Data!$H104) ->  | BF33: =IF(Data!$G135="","",Data!$G135) ->  | BK33: =IF(Data!$H135="","",Data!$H135) ->  | BT33: =IF(Data!$G166="","",Data!$G166) ->  | BY33: =IF(Data!$H166="","",Data!$H166) ->  | CH33: =IF(Data!$G197="","",Data!$G197) ->  | CM33: =IF(Data!$H197="","",Data!$H197) -> 
B34: =Data!$G12 -> 435 | G34: =Data!$H12 -> 7.165364 | P34: =Data!$G43 -> 590 | U34: =Data!$H43 -> 7.780416 | AD34: =IF(Data!$G74="","",Data!$G74) -> 745 | AI34: =IF(Data!$H74="","",Data!$H74) -> 7.643743 | AR34: =IF(Data!$G105="","",Data!$G105) ->  | AW34: =IF(Data!$H105="","",Data!$H105) ->  | BF34: =IF(Data!$G136="","",Data!$G136) ->  | BK34: =IF(Data!$H136="","",Data!$H136) ->  | BT34: =IF(Data!$G167="","",Data!$G167) ->  | BY34: =IF(Data!$H167="","",Data!$H167) ->  | CH34: =IF(Data!$G198="","",Data!$G198) ->  | CM34: =IF(Data!$H198="","",Data!$H198) -> 
B35: =Data!$G13 -> 440 | G35: =Data!$H13 -> 7.857132 | P35: =Data!$G44 -> 595 | U35: =Data!$H44 -> 7.759864 | AD35: =IF(Data!$G75="","",Data!$G75) -> 750 | AI35: =IF(Data!$H75="","",Data!$H75) -> 7.522743 | AR35: =IF(Data!$G106="","",Data!$G106) ->  | AW35: =IF(Data!$H106="","",Data!$H106) ->  | BF35: =IF(Data!$G137="","",Data!$G137) ->  | BK35: =IF(Data!$H137="","",Data!$H137) ->  | BT35: =IF(Data!$G168="","",Data!$G168) ->  | BY35: =IF(Data!$H168="","",Data!$H168) ->  | CH35: =IF(Data!$G199="","",Data!$G199) ->  | CM35: =IF(Data!$H199="","",Data!$H199) -> 
B36: =Data!$G14 -> 445 | G36: =Data!$H14 -> 8.469516 | P36: =Data!$G45 -> 600 | U36: =Data!$H45 -> 7.767684 | AD36: =IF(Data!$G76="","",Data!$G76) -> 755 | AI36: =IF(Data!$H76="","",Data!$H76) -> 6.633342 | AR36: =IF(Data!$G107="","",Data!$G107) ->  | AW36: =IF(Data!$H107="","",Data!$H107) ->  | BF36: =IF(Data!$G138="","",Data!$G138) ->  | BK36: =IF(Data!$H138="","",Data!$H138) ->  | BT36: =IF(Data!$G169="","",Data!$G169) ->  | BY36: =IF(Data!$H169="","",Data!$H169) ->  | CH36: =IF(Data!$G200="","",Data!$G200) ->  | CM36: =IF(Data!$H200="","",Data!$H200) -> 
B37: =Data!$G15 -> 450 | G37: =Data!$H15 -> 9.062076 | P37: =Data!$G46 -> 605 | U37: =Data!$H46 -> 7.731814 | AD37: =IF(Data!$G77="","",Data!$G77) -> 760 | AI37: =IF(Data!$H77="","",Data!$H77) -> 5.164568 | AR37: =IF(Data!$G108="","",Data!$G108) ->  | AW37: =IF(Data!$H108="","",Data!$H108) ->  | BF37: =IF(Data!$G139="","",Data!$G139) ->  | BK37: =IF(Data!$H139="","",Data!$H139) ->  | BT37: =IF(Data!$G170="","",Data!$G170) ->  | BY37: =IF(Data!$H170="","",Data!$H170) ->  | CH37: =IF(Data!$G201="","",Data!$G201) ->  | CM37: =IF(Data!$H201="","",Data!$H201) -> 
B38: =Data!$G16 -> 455 | G38: =Data!$H16 -> 9.385198 | P38: =Data!$G47 -> 610 | U38: =Data!$H47 -> 7.620013 | AD38: =IF(Data!$G78="","",Data!$G78) -> 765 | AI38: =IF(Data!$H78="","",Data!$H78) -> 5.17249 | AR38: =IF(Data!$G109="","",Data!$G109) ->  | AW38: =IF(Data!$H109="","",Data!$H109) ->  | BF38: =IF(Data!$G140="","",Data!$G140) ->  | BK38: =IF(Data!$H140="","",Data!$H140) ->  | BT38: =IF(Data!$G171="","",Data!$G171) ->  | BY38: =IF(Data!$H171="","",Data!$H171) ->  | CH38: =IF(Data!$G202="","",Data!$G202) ->  | CM38: =IF(Data!$H202="","",Data!$H202) -> 
B39: =Data!$G17 -> 460 | G39: =Data!$H17 -> 9.541563 | P39: =Data!$G48 -> 615 | U39: =Data!$H48 -> 7.450061 | AD39: =IF(Data!$G79="","",Data!$G79) -> 770 | AI39: =IF(Data!$H79="","",Data!$H79) -> 6.48655 | AR39: =IF(Data!$G110="","",Data!$G110) ->  | AW39: =IF(Data!$H110="","",Data!$H110) ->  | BF39: =IF(Data!$G141="","",Data!$G141) ->  | BK39: =IF(Data!$H141="","",Data!$H141) ->  | BT39: =IF(Data!$G172="","",Data!$G172) ->  | BY39: =IF(Data!$H172="","",Data!$H172) ->  | CH39: =IF(Data!$G203="","",Data!$G203) ->  | CM39: =IF(Data!$H203="","",Data!$H203) -> 
B40: =Data!$G18 -> 465 | G40: =Data!$H18 -> 9.447047 | P40: =Data!$G49 -> 620 | U40: =Data!$H49 -> 7.38654 | AD40: =IF(Data!$G80="","",Data!$G80) -> 775 | AI40: =IF(Data!$H80="","",Data!$H80) -> 7.151005 | AR40: =IF(Data!$G111="","",Data!$G111) ->  | AW40: =IF(Data!$H111="","",Data!$H111) ->  | BF40: =IF(Data!$G142="","",Data!$G142) ->  | BK40: =IF(Data!$H142="","",Data!$H142) ->  | BT40: =IF(Data!$G173="","",Data!$G173) ->  | BY40: =IF(Data!$H173="","",Data!$H173) ->  | CH40: =IF(Data!$G204="","",Data!$G204) ->  | CM40: =IF(Data!$H204="","",Data!$H204) -> 
B41: =Data!$G19 -> 470 | G41: =Data!$H19 -> 9.376203 | P41: =Data!$G50 -> 625 | U41: =Data!$H50 -> 7.204806 | AD41: =IF(Data!$G81="","",Data!$G81) -> 780 | AI41: =IF(Data!$H81="","",Data!$H81) -> 7.171795 | AR41: =IF(Data!$G112="","",Data!$G112) ->  | AW41: =IF(Data!$H112="","",Data!$H112) ->  | BF41: =IF(Data!$G143="","",Data!$G143) ->  | BK41: =IF(Data!$H143="","",Data!$H143) ->  | BT41: =IF(Data!$G174="","",Data!$G174) ->  | BY41: =IF(Data!$H174="","",Data!$H174) ->  | CH41: =IF(Data!$G205="","",Data!$G205) ->  | CM41: =IF(Data!$H205="","",Data!$H205) -> 
B42: =Data!$G20 -> 475 | G42: =Data!$H20 -> 9.401905 | P42: =Data!$G51 -> 630 | U42: =Data!$H51 -> 7.072663 | AD42: =IF(Data!$G82="","",Data!$G82) ->  | AI42: =IF(Data!$H82="","",Data!$H82) ->  | AR42: =IF(Data!$G113="","",Data!$G113) ->  | AW42: =IF(Data!$H113="","",Data!$H113) ->  | BF42: =IF(Data!$G144="","",Data!$G144) ->  | BK42: =IF(Data!$H144="","",Data!$H144) ->  | BT42: =IF(Data!$G175="","",Data!$G175) ->  | BY42: =IF(Data!$H175="","",Data!$H175) ->  | CH42: =IF(Data!$G206="","",Data!$G206) ->  | CM42: =IF(Data!$H206="","",Data!$H206) -> 
B43: =Data!$G21 -> 480 | G43: =Data!$H21 -> 9.388743 | P43: =Data!$G52 -> 635 | U43: =Data!$H52 -> 7.087899 | AD43: =IF(Data!$G83="","",Data!$G83) ->  | AI43: =IF(Data!$H83="","",Data!$H83) ->  | AR43: =IF(Data!$G114="","",Data!$G114) ->  | AW43: =IF(Data!$H114="","",Data!$H114) ->  | BF43: =IF(Data!$G145="","",Data!$G145) ->  | BK43: =IF(Data!$H145="","",Data!$H145) ->  | BT43: =IF(Data!$G176="","",Data!$G176) ->  | BY43: =IF(Data!$H176="","",Data!$H176) ->  | CH43: =IF(Data!$G207="","",Data!$G207) ->  | CM43: =IF(Data!$H207="","",Data!$H207) -> 
B44: =Data!$G22 -> 485 | G44: =Data!$H22 -> 9.154291 | P44: =Data!$G53 -> 640 | U44: =Data!$H53 -> 7.041917 | AD44: =IF(Data!$G84="","",Data!$G84) ->  | AI44: =IF(Data!$H84="","",Data!$H84) ->  | AR44: =IF(Data!$G115="","",Data!$G115) ->  | AW44: =IF(Data!$H115="","",Data!$H115) ->  | BF44: =IF(Data!$G146="","",Data!$G146) ->  | BK44: =IF(Data!$H146="","",Data!$H146) ->  | BT44: =IF(Data!$G177="","",Data!$G177) ->  | BY44: =IF(Data!$H177="","",Data!$H177) ->  | CH44: =IF(Data!$G208="","",Data!$G208) ->  | CM44: =IF(Data!$H208="","",Data!$H208) -> 
B45: =Data!$G23 -> 490 | G45: =Data!$H23 -> 9.029051 | P45: =Data!$G54 -> 645 | U45: =Data!$H54 -> 6.898617 | AD45: =IF(Data!$G85="","",Data!$G85) ->  | AI45: =IF(Data!$H85="","",Data!$H85) ->  | AR45: =IF(Data!$G116="","",Data!$G116) ->  | AW45: =IF(Data!$H116="","",Data!$H116) ->  | BF45: =IF(Data!$G147="","",Data!$G147) ->  | BK45: =IF(Data!$H147="","",Data!$H147) ->  | BT45: =IF(Data!$G178="","",Data!$G178) ->  | BY45: =IF(Data!$H178="","",Data!$H178) ->  | CH45: =IF(Data!$G209="","",Data!$G209) ->  | CM45: =IF(Data!$H209="","",Data!$H209) -> 
B46: =Data!$G24 -> 495 | G46: =Data!$H24 -> 9.191137 | P46: =Data!$G55 -> 650 | U46: =Data!$H55 -> 6.764739 | AD46: =IF(Data!$G86="","",Data!$G86) ->  | AI46: =IF(Data!$H86="","",Data!$H86) ->  | AR46: =IF(Data!$G117="","",Data!$G117) ->  | AW46: =IF(Data!$H117="","",Data!$H117) ->  | BF46: =IF(Data!$G148="","",Data!$G148) ->  | BK46: =IF(Data!$H148="","",Data!$H148) ->  | BT46: =IF(Data!$G179="","",Data!$G179) ->  | BY46: =IF(Data!$H179="","",Data!$H179) ->  | CH46: =IF(Data!$G210="","",Data!$G210) ->  | CM46: =IF(Data!$H210="","",Data!$H210) -> 
B47: =Data!$G25 -> 500 | G47: =Data!$H25 -> 9.110776 | P47: =Data!$G56 -> 655 | U47: =Data!$H56 -> 6.629961 | AD47: =IF(Data!$G87="","",Data!$G87) ->  | AI47: =IF(Data!$H87="","",Data!$H87) ->  | AR47: =IF(Data!$G118="","",Data!$G118) ->  | AW47: =IF(Data!$H118="","",Data!$H118) ->  | BF47: =IF(Data!$G149="","",Data!$G149) ->  | BK47: =IF(Data!$H149="","",Data!$H149) ->  | BT47: =IF(Data!$G180="","",Data!$G180) ->  | BY47: =IF(Data!$H180="","",Data!$H180) ->  | CH47: =IF(Data!$G211="","",Data!$G211) ->  | CM47: =IF(Data!$H211="","",Data!$H211) -> 
B48: =Data!$G26 -> 505 | G48: =Data!$H26 -> 9.107321 | P48: =Data!$G57 -> 660 | U48: =Data!$H57 -> 6.627166 | AD48: =IF(Data!$G88="","",Data!$G88) ->  | AI48: =IF(Data!$H88="","",Data!$H88) ->  | AR48: =IF(Data!$G119="","",Data!$G119) ->  | AW48: =IF(Data!$H119="","",Data!$H119) ->  | BF48: =IF(Data!$G150="","",Data!$G150) ->  | BK48: =IF(Data!$H150="","",Data!$H150) ->  | BT48: =IF(Data!$G181="","",Data!$G181) ->  | BY48: =IF(Data!$H181="","",Data!$H181) ->  | CH48: =IF(Data!$G212="","",Data!$G212) ->  | CM48: =IF(Data!$H212="","",Data!$H212) -> 
B49: =Data!$G27 -> 510 | G49: =Data!$H27 -> 9.049134 | P49: =Data!$G58 -> 665 | U49: =Data!$H58 -> 6.706842 | AD49: =IF(Data!$G89="","",Data!$G89) ->  | AI49: =IF(Data!$H89="","",Data!$H89) ->  | AR49: =IF(Data!$G120="","",Data!$G120) ->  | AW49: =IF(Data!$H120="","",Data!$H120) ->  | BF49: =IF(Data!$G151="","",Data!$G151) ->  | BK49: =IF(Data!$H151="","",Data!$H151) ->  | BT49: =IF(Data!$G182="","",Data!$G182) ->  | BY49: =IF(Data!$H182="","",Data!$H182) ->  | CH49: =IF(Data!$G213="","",Data!$G213) ->  | CM49: =IF(Data!$H213="","",Data!$H213) -> 
B50: =Data!$G28 -> 515 | G50: =Data!$H28 -> 8.892465 | P50: =Data!$G59 -> 670 | U50: =Data!$H59 -> 6.675735 | AD50: =IF(Data!$G90="","",Data!$G90) ->  | AI50: =IF(Data!$H90="","",Data!$H90) ->  | AR50: =IF(Data!$G121="","",Data!$G121) ->  | AW50: =IF(Data!$H121="","",Data!$H121) ->  | BF50: =IF(Data!$G152="","",Data!$G152) ->  | BK50: =IF(Data!$H152="","",Data!$H152) ->  | BT50: =IF(Data!$G183="","",Data!$G183) ->  | BY50: =IF(Data!$H183="","",Data!$H183) ->  | CH50: =IF(Data!$G214="","",Data!$G214) ->  | CM50: =IF(Data!$H214="","",Data!$H214) -> 
B51: =Data!$G29 -> 520 | G51: =Data!$H29 -> 8.797625 | P51: =Data!$G60 -> 675 | U51: =Data!$H60 -> 6.562427 | AD51: =IF(Data!$G91="","",Data!$G91) ->  | AI51: =IF(Data!$H91="","",Data!$H91) ->  | AR51: =IF(Data!$G122="","",Data!$G122) ->  | AW51: =IF(Data!$H122="","",Data!$H122) ->  | BF51: =IF(Data!$G153="","",Data!$G153) ->  | BK51: =IF(Data!$H153="","",Data!$H153) ->  | BT51: =IF(Data!$G184="","",Data!$G184) ->  | BY51: =IF(Data!$H184="","",Data!$H184) ->  | CH51: =IF(Data!$G215="","",Data!$G215) ->  | CM51: =IF(Data!$H215="","",Data!$H215) -> 
B52: =Data!$G30 -> 525 | G52: =Data!$H30 -> 8.989483 | P52: =Data!$G61 -> 680 | U52: =Data!$H61 -> 6.349692 | AD52: =IF(Data!$G92="","",Data!$G92) ->  | AI52: =IF(Data!$H92="","",Data!$H92) ->  | AR52: =IF(Data!$G123="","",Data!$G123) ->  | AW52: =IF(Data!$H123="","",Data!$H123) ->  | BF52: =IF(Data!$G154="","",Data!$G154) ->  | BK52: =IF(Data!$H154="","",Data!$H154) ->  | BT52: =IF(Data!$G185="","",Data!$G185) ->  | BY52: =IF(Data!$H185="","",Data!$H185) ->  | CH52: =IF(Data!$G216="","",Data!$G216) ->  | CM52: =IF(Data!$H216="","",Data!$H216) -> 
B53: =Data!$G31 -> 530 | G53: =Data!$H31 -> 9.111626 | P53: =Data!$G62 -> 685 | U53: =Data!$H62 -> 5.958326 | AD53: =IF(Data!$G93="","",Data!$G93) ->  | AI53: =IF(Data!$H93="","",Data!$H93) ->  | AR53: =IF(Data!$G124="","",Data!$G124) ->  | AW53: =IF(Data!$H124="","",Data!$H124) ->  | BF53: =IF(Data!$G155="","",Data!$G155) ->  | BK53: =IF(Data!$H155="","",Data!$H155) ->  | BT53: =IF(Data!$G186="","",Data!$G186) ->  | BY53: =IF(Data!$H186="","",Data!$H186) ->  | CH53: =IF(Data!$G217="","",Data!$G217) ->  | CM53: =IF(Data!$H217="","",Data!$H217) -> 
A64: ='Protocol 1 (5nm)'!A54:AA54 -> Company
A65: ='Protocol 1 (5nm)'!A55:AA55 -> Address
A66: ='Protocol 1 (5nm)'!A56:AA56 -> ZIP City
A68: ='Protocol 1 (5nm)'!A58:O58 -> Test location, | P68: ='Protocol 1 (5nm)'!P58:AA58 -> Date | BL68: ='Protocol 1 (5nm)'!BL58:CF58 -> First, last name of inspector | CG68: ='Protocol 1 (5nm)'!CG58:CX58 -> Phone number

Sheet Protocol 3
A1: =IF(Data!$AE$2="DE","Messprotokoll",IF(Data!$AE$2="UK","Measurement protocol",IF(Data!$AE$2="FR","Rapport de mesure","Language Error"))) -> Measurement protocol
A4: =IF(Data!$AE$2 = "DE", "Prüfling:", IF(Data!$AE$2 = "UK","Test object:",IF(Data!$AE$2="FR","Objet testé:","Language Error"))) -> Test object: | N4: ='Protocol 1 (5nm)'!N4:BG4 -> Manufacturer | BK4: =IF(Data!$AE$2="DE","Messdatei:",IF(Data!$AE$2="UK","Measurement file:",IF(Data!$AE$2="FR","Fichier de mesure:","Language Error"))) -> Measurement file: | CG4: =Data!Q18 -> Measured
N5: ='Protocol 1 (5nm)'!N5:BG5 -> Type | BK5: =IF(Data!$AE$2="DE","Datum der Messung:",IF(Data!$AE$2="UK","Date of measurement:",IF(Data!$AE$2="FR","Date de mesure:","Language Error"))) -> Date of measurement: | CG5: =Data!Q23 -> 22.04.2024
N6: ='Protocol 1 (5nm)'!N6:BG6 -> Model | BK6: =IF(Data!$AE$2="DE","Uhrzeit der Messung:",IF(Data!$AE$2="UK","Time of measurement:",IF(Data!$AE$2="FR","Heure de mesure:","Language Error"))) -> Time of measurement: | CG6: =Data!Q21 -> 14:26:00
A60: ='Protocol 1 (5nm)'!A54:AA54 -> Company
A61: ='Protocol 1 (5nm)'!A55:AA55 -> Address
A62: ='Protocol 1 (5nm)'!A56:AA56 -> ZIP City
A64: ='Protocol 1 (5nm)'!A58:O58 -> Test location, | P64: ='Protocol 1 (5nm)'!P58:AA58 -> Date | BL64: ='Protocol 1 (5nm)'!BL58:CF58 -> First, last name of inspector | CG64: ='Protocol 1 (5nm)'!CG58:CX58 -> Phone number

Sheet Protocol TM30
A1: =IF(Data!$AE$2="DE","Messprotokoll",IF(Data!$AE$2="UK","Measurement protocol",IF(Data!$AE$2="FR","Rapport de mesure","Language Error"))) -> Measurement protocol
A4: =IF(Data!$AE$2 = "DE", "Prüfling:", IF(Data!$AE$2 = "UK","Test object:",IF(Data!$AE$2="FR","Objet testé:","Language Error"))) -> Test object: | N4: ='Protocol 1 (5nm)'!N4:BG4 -> Manufacturer | BK4: =IF(Data!$AE$2="DE","Messdatei:",IF(Data!$AE$2="UK","Measurement file:",IF(Data!$AE$2="FR","Fichier de mesure:","Language Error"))) -> Measurement file: | CG4: =Data!Q18 -> Measured
N5: ='Protocol 1 (5nm)'!N5:BG5 -> Type | BK5: =IF(Data!$AE$2="DE","Datum der Messung:",IF(Data!$AE$2="UK","Date of measurement:",IF(Data!$AE$2="FR","Date de mesure:","Language Error"))) -> Date of measurement: | CG5: =Data!Q23 -> 22.04.2024
N6: ='Protocol 1 (5nm)'!N6:BG6 -> Model | BK6: =IF(Data!$AE$2="DE","Uhrzeit der Messung:",IF(Data!$AE$2="UK","Time of measurement:",IF(Data!$AE$2="FR","Heure de mesure:","Language Error"))) -> Time of measurement: | CG6: =Data!Q21 -> 14:26:00
A54: ='Protocol 1 (5nm)'!A54:AA54 -> Company
A55: ='Protocol 1 (5nm)'!A55:AA55 -> Address
A56: ='Protocol 1 (5nm)'!A56:AA56 -> ZIP City
A58: ='Protocol 1 (5nm)'!A58:O58 -> Test location, | P58: ='Protocol 1 (5nm)'!P58:AA58 -> Date | BL58: ='Protocol 1 (5nm)'!BL58:CF58 -> First, last name of inspector | CG58: ='Protocol 1 (5nm)'!CG58:CX58 -> Phone number

Sheet Protocol Flicker
A1: =IF(Data!$AE$2="DE","Messprotokoll",IF(Data!$AE$2="UK","Measurement protocol",IF(Data!$AE$2="FR","Rapport de mesure","Language Error"))) -> Measurement protocol
A4: =IF(Data!$AE$2 = "DE", "Prüfling:", IF(Data!$AE$2 = "UK","Test object:",IF(Data!$AE$2="FR","Objet testé:","Language Error"))) -> Test object: | N4: ='Protocol 1 (5nm)'!N4:BG4 -> Manufacturer | BK4: =IF(Data!$AE$2="DE","Messdatei:",IF(Data!$AE$2="UK","Measurement file:",IF(Data!$AE$2="FR","Fichier de mesure:","Language Error"))) -> Measurement file: | CG4: =Data!Q18 -> Measured
N5: ='Protocol 1 (5nm)'!N5:BG5 -> Type | BK5: =IF(Data!$AE$2="DE","Datum der Messung:",IF(Data!$AE$2="UK","Date of measurement:",IF(Data!$AE$2="FR","Date de mesure:","Language Error"))) -> Date of measurement: | CG5: =Data!Q23 -> 22.04.2024
N6: ='Protocol 1 (5nm)'!N6:BG6 -> Model | BK6: =IF(Data!$AE$2="DE","Uhrzeit der Messung:",IF(Data!$AE$2="UK","Time of measurement:",IF(Data!$AE$2="FR","Heure de mesure:","Language Error"))) -> Time of measurement: | CG6: =Data!Q21 -> 14:26:00
D23: =IF(Data!$AE$2 = "DE", "Flickerfrequenz", IF(Data!$AE$2 = "UK","Flicker frequency",IF(Data!$AE$2="FR","Fréquence flicker","Language Error"))) -> Flicker frequency | AI23: =Data!K36 -> 0
D24: =IF(Data!$AE$2 = "DE", "Prozent Flicker", IF(Data!$AE$2 = "UK","Percent Flicker",IF(Data!$AE$2="FR","% flicker","Language Error"))) -> Percent Flicker | AI24: =Data!K37 -> 1.052689
D25: =IF(Data!$AE$2 = "DE", "Flickerindex", IF(Data!$AE$2 = "UK","Flicker index",IF(Data!$AE$2="FR","Index flicker","Language Error"))) -> Flicker index | AI25: =Data!K35 -> 0.001261
A54: ='Protocol 1 (5nm)'!A54:AA54 -> Company
A55: ='Protocol 1 (5nm)'!A55:AA55 -> Address
A56: ='Protocol 1 (5nm)'!A56:AA56 -> ZIP City
A58: ='Protocol 1 (5nm)'!A58:O58 -> Test location, | P58: ='Protocol 1 (5nm)'!P58:AA58 -> Date | BL58: ='Protocol 1 (5nm)'!BL58:CF58 -> First, last name of inspector | CG58: ='Protocol 1 (5nm)'!CG58:CX58 -> Phone number

Sheet Protocol TLCI
A1: =IF(Data!$AE$2="DE","Messprotokoll",IF(Data!$AE$2="UK","Measurement protocol",IF(Data!$AE$2="FR","Rapport de mesure","Language Error"))) -> Measurement protocol
A4: =IF(Data!$AE$2 = "DE", "Prüfling:", IF(Data!$AE$2 = "UK","Test object:",IF(Data!$AE$2="FR","Objet testé:","Language Error"))) -> Test object: | N4: ='Protocol 1 (5nm)'!N4:BG4 -> Manufacturer | BK4: =IF(Data!$AE$2="DE","Messdatei:",IF(Data!$AE$2="UK","Measurement file:",IF(Data!$AE$2="FR","Fichier de mesure:","Language Error"))) -> Measurement file: | CG4: =Data!Q18 -> Measured
N5: ='Protocol 1 (5nm)'!N5:BG5 -> Type | BK5: =IF(Data!$AE$2="DE","Datum der Messung:",IF(Data!$AE$2="UK","Date of measurement:",IF(Data!$AE$2="FR","Date de mesure:","Language Error"))) -> Date of measurement: | CG5: =Data!Q23 -> 22.04.2024
N6: ='Protocol 1 (5nm)'!N6:BG6 -> Model | BK6: =IF(Data!$AE$2="DE","Uhrzeit der Messung:",IF(Data!$AE$2="UK","Time of measurement:",IF(Data!$AE$2="FR","Heure de mesure:","Language Error"))) -> Time of measurement: | CG6: =Data!Q21 -> 14:26:00
D23: =IF(Data!$AE$2 = "DE", "Ähnlichste Farbtemperatur (CCT)", IF(Data!$AE$2 = "UK","correlated color temperature (CCT)",IF(Data!$AE$2="FR","Temp. de couleur proximale (CCT)","Language Error"))) -> correlated color temperature (CCT) | AI23: =Data!K30 -> 6137 | BC23: =IF(Data!$AE$2 = "DE", "Referenzspektrum", IF(Data!$AE$2 = "UK","Referencec Spectrum",IF(Data!$AE$2="FR","Spectre de référence","Language Error"))) -> Referencec Spectrum | BY23: =Data!Q31 -> Daylight
D24: TLCI | AI24: =Data!Q30 -> 100
I26: Lightness | S26: Chroma | AC26: Hue
D27: R | I27: =Data!Q50 -> 0 | S27: =Data!Q51 -> 0 | AC27: =Data!Q52 -> 0
D28: R/Y | I28: =Data!Q53 -> 0 | S28: =Data!Q54 -> 0 | AC28: =Data!Q55 -> 0
D29: Y | I29: =Data!Q56 -> 0 | S29: =Data!Q57 -> 0 | AC29: =Data!Q58 -> 0
D30: Y/G | I30: =Data!Q59 -> 0 | S30: =Data!Q60 -> 0 | AC30: =Data!Q61 -> 0
D31: G | I31: =Data!Q62 -> 0 | S31: =Data!Q63 -> 0 | AC31: =Data!Q64 -> 0
D32: G/C | I32: =Data!Q65 -> 0 | S32: =Data!Q66 -> 0 | AC32: =Data!Q67 -> 0
D33: C | I33: =Data!Q68 -> 0 | S33: =Data!Q69 -> 0 | AC33: =Data!Q70 -> 0
D34: C/B | I34: =Data!Q71 -> 0 | S34: =Data!Q72 -> 0 | AC34: =Data!Q73 -> 0
D35: B | I35: =Data!Q74 -> 0 | S35: =Data!Q75 -> 0 | AC35: =Data!Q76 -> 0
D36: B/M | I36: =Data!Q77 -> 0 | S36: =Data!Q78 -> 0 | AC36: =Data!Q79 -> 0
D37: M | I37: =Data!Q80 -> 0 | S37: =Data!Q81 -> 0 | AC37: =Data!Q82 -> 0
D38: M/R | I38: =Data!Q83 -> 0 | S38: =Data!Q84 -> 0 | AC38: =Data!Q85 -> 0
D44: =IF(Data!$AE$2 = "DE", "Testfarbe", IF(Data!$AE$2 = "UK","Test Colour",IF(Data!$AE$2="FR","Couleur de test","Language Error"))) -> Test Colour | X44: =IF(Data!$AE$2 = "DE", "Wert", IF(Data!$AE$2 = "UK","Value",IF(Data!$AE$2="FR","Valeur","Language Error"))) -> Value | AF44: =IF(Data!$AE$2 = "DE", "Testfarbe", IF(Data!$AE$2 = "UK","Test Colour",IF(Data!$AE$2="FR","Couleur de test","Language Error"))) -> Test Colour | AZ44: =IF(Data!$AE$2 = "DE", "Wert", IF(Data!$AE$2 = "UK","Value",IF(Data!$AE$2="FR","Valeur","Language Error"))) -> Value | BH44: =IF(Data!$AE$2 = "DE", "Testfarbe", IF(Data!$AE$2 = "UK","Test Colour",IF(Data!$AE$2="FR","Couleur de test","Language Error"))) -> Test Colour | CB44: =IF(Data!$AE$2 = "DE", "Wert", IF(Data!$AE$2 = "UK","Value",IF(Data!$AE$2="FR","Valeur","Language Error"))) -> Value
D45: Q1 | I45: Dark skin | X45: =Data!Q32 -> 99 | AF45: Q7 | AK45: Orange | AZ45: =Data!Q38 -> 99 | BH45: Q13 | BM45: Blue | CB45: =Data!Q44 -> 99
D46: Q2 | I46: Light skin | V46: =Data!Q33 -> 99 | X46: =Data!Q33 -> 99 | AF46: Q8 | AK46: Purplish blue | AZ46: =Data!Q39 -> 99 | BH46: Q14 | BM46: Green | CB46: =Data!Q45 -> 99
D47: Q3 | I47: Blue sky | V47: =Data!Q34 -> 99 | X47: =Data!Q34 -> 99 | AF47: Q9 | AK47: Moderate red | AZ47: =Data!Q40 -> 99 | BH47: Q15 | BM47: Red | CB47: =Data!Q46 -> 99
D48: Q4 | I48: Foliage | V48: =Data!Q35 -> 99 | X48: =Data!Q35 -> 99 | AF48: Q10 | AK48: Purple | AZ48: =Data!Q41 -> 99 | BH48: Q16 | BM48: Yellow | CB48: =Data!Q47 -> 99
D49: Q5 | I49: Blue flower | V49: =Data!Q36 -> 99 | X49: =Data!Q36 -> 99 | AF49: Q11 | AK49: Yellow green | AZ49: =Data!Q42 -> 99 | BH49: Q17 | BM49: Magenta | CB49: =Data!Q48 -> 99
D50: Q6 | I50: Bluish green | V50: =Data!Q37 -> 99 | X50: =Data!Q37 -> 99 | AF50: Q12 | AK50: Orange yellow | AZ50: =Data!Q43 -> 99 | BH50: Q18 | BM50: Cyan | CB50: =Data!Q49 -> 99
A54: ='Protocol 1 (5nm)'!A54:AA54 -> Company
A55: ='Protocol 1 (5nm)'!A55:AA55 -> Address
A56: ='Protocol 1 (5nm)'!A56:AA56 -> ZIP City
A58: ='Protocol 1 (5nm)'!A58:O58 -> Test location, | P58: ='Protocol 1 (5nm)'!P58:AA58 -> Date | BL58: ='Protocol 1 (5nm)'!BL58:CF58 -> First, last name of inspector | CG58: ='Protocol 1 (5nm)'!CG58:CX58 -> Phone number

Sheet Reference Comparison
A1: =IF(Data!$AE$2="DE","Messprotokoll",IF(Data!$AE$2="UK","Measurement protocol",IF(Data!$AE$2="FR","Rapport de mesure","Language Error"))) -> Measurement protocol
A4: =IF(Data!$AE$2 = "DE", "Prüfling:", IF(Data!$AE$2 = "UK","Test object:",IF(Data!$AE$2="FR","Objet testé:","Language Error"))) -> Test object: | N4: ='Protocol 1 (5nm)'!N4:BG4 -> Manufacturer | BK4: =IF(Data!$AE$2="DE","Messdatei:",IF(Data!$AE$2="UK","Measurement file:",IF(Data!$AE$2="FR","Fichier de mesure:","Language Error"))) -> Measurement file: | CG4: =Data!Q18 -> Measured
N5: ='Protocol 1 (5nm)'!N5:BG5 -> Type | BK5: =IF(Data!$AE$2="DE","Datum der Messung:",IF(Data!$AE$2="UK","Date of measurement:",IF(Data!$AE$2="FR","Date de mesure:","Language Error"))) -> Date of measurement: | CG5: =Data!Q23 -> 22.04.2024
N6: ='Protocol 1 (5nm)'!N6:BG6 -> Model | BK6: =IF(Data!$AE$2="DE","Uhrzeit der Messung:",IF(Data!$AE$2="UK","Time of measurement:",IF(Data!$AE$2="FR","Heure de mesure:","Language Error"))) -> Time of measurement: | CG6: =Data!Q21 -> 14:26:00
BK7: =IF(Data!$AE$2="DE","Referenzdatei:",IF(Data!$AE$2="UK","Reference file:",IF(Data!$AE$2="FR","Fichier de référence:","Language Error"))) -> Reference file: | CG7: =Data!AC18 -> M_000002.CSV
BK8: =IF(Data!$AE$2="DE","Datum der Messung:",IF(Data!$AE$2="UK","Date of measurement:",IF(Data!$AE$2="FR","Date de mesure:","Language Error"))) -> Date of measurement: | CG8: =Data!AC23 -> 15.02.2021
BK9: =IF(Data!$AE$2="DE","Uhrzeit der Messung:",IF(Data!$AE$2="UK","Time of measurement:",IF(Data!$AE$2="FR","Heure de mesure:","Language Error"))) -> Time of measurement: | CG9: =Data!AC21 -> 14:02:53
G25: =Data!$AB$18 -> reference | Q25: =Data!$P$18 -> measurement | AD25: Δ | BO25: =Data!$AB$18 -> reference | CA25: =Data!$P$18 -> measurement | CN25: Δ
B26: Ra | G26: =Data!W1 -> 81.76 | Q26: =Data!K1 -> 97.45 | AD26: =Q26-G26 -> 15.69 | AK26: =IF(Data!$AE$2="DE","Beleuchtungsstärke",IF(Data!$AE$2="UK","Illuminance",IF(Data!$AE$2="FR","Illuminance","Language Error"))) -> Illuminance | BO26: =Data!W33 -> 618.98 | CA26: =Data!K33 -> 618.2 | CN26: =CA26-BO26 -> -0.78
B27: R1 | G27: =Data!W2 -> 92.13 | Q27: =Data!K2 -> 96.71 | AD27: =Q27-G27 -> 4.58 | AK27: Ee | BO27: =Data!AC25 -> 1.781 | CA27: =Data!Q25 -> 2.971 | CN27: =CA27-BO27 -> 1.19
B28: R2 | G28: =Data!W3 -> 90.56 | Q28: =Data!K3 -> 98.33 | AD28: 7.77 | AK28: LER | BO28: =Data!AC26 -> 347.5 | CA28: =Data!Q26 -> 208.0780882 | CN28: =CA28-BO28 -> -139.4219118
B29: R3 | G29: =Data!W4 -> 60.36 | Q29: =Data!K4 -> 99.17 | AD29: 38.81
B30: R4 | G30: =Data!W5 -> 87.93 | Q30: =Data!K5 -> 96.5 | AD30: 8.57 | AK30: =IF(Data!$AE$2 = "DE", "Ähnlichste Farbtemperatur (CCT)", IF(Data!$AE$2 = "UK","correlated color temperature (CCT)",IF(Data!$AE$2="FR","temp. de couleur proximale (CCT)","Language Error"))) -> correlated color temperature (CCT) | BO30: =Data!W30 -> 3865 | CA30: =Data!K30 -> 6137 | CN30: =CA30-BO30 -> 2272
B31: R5 | G31: =Data!W6 -> 82.79 | Q31: =Data!K6 -> 96.93 | AD31: 14.14 | AK31: Duv | BO31: =Data!W31 -> 0.0074 | CA31: =Data!K31 -> 0.0059 | CN31: =CA31-BO31 -> -0.0015
B32: R6 | G32: =Data!W7 -> 77.28 | Q32: =Data!K7 -> 98.08 | AD32: 20.8
B33: R7 | G33: =Data!W8 -> 91.05 | Q33: =Data!K8 -> 98.45 | AD33: 7.4 | AK33: =IF(Data!$AE$2 = "DE", "Farbreinheit",IF(Data!$AE$2 = "UK","Saturation",IF(Data!$AE$2="FR","Saturation","Language Error"))) -> Saturation | BO33: =Data!W39/100 -> 0.38 | CA33: =Data!K39/100 -> 0.046 | CN33: =CA33-BO33 -> -0.334
B34: R8 | G34: =Data!W9 -> 71.98 | Q34: =Data!K9 -> 95.4 | AD34: 23.42
B35: R9 | G35: =Data!W10 -> 7.09 | Q35: =Data!K10 -> 86.96 | AD35: 79.87 | AK35: =IF(Data!$AE$2 = "DE", "Dominante Wellenlänge", IF(Data!$AE$2 = "UK", "Dominant wavelength",IF(Data!$AE$2="FR","Longueur d'onde dominante (λD)","Language Error"))) -> Dominant wavelength | BO35: =Data!W40 -> 576 | CA35: =Data!K40 -> 495 | CN35: =CA35-BO35 -> -81
B36: R10 | G36: =Data!W11 -> 48.9 | Q36: =Data!K11 -> 96.71 | AD36: 47.81 | AK36: =IF(Data!$AE$2 = "DE", "Peak-Wellenlänge",IF(Data!$AE$2 = "UK", "Peak wavelength",IF(Data!$AE$2="FR","Pic courbe spectrale (λP)","Language Error"))) -> Peak wavelength | BO36: =Data!W20 -> 544 | CA36: =Data!K20 -> 459 | CN36: =CA36-BO36 -> -85
B37: R11 | G37: =Data!W12 -> 70.99 | Q37: =Data!K12 -> 96.02 | AD37: 25.03
B38: R12 | G38: =Data!W13 -> 53.37 | Q38: =Data!K13 -> 96.51 | AD38: 43.14 | AK38: TM30 Rf | BO38: =Data!W43 -> 80.7 | CA38: =Data!K43 -> 0 | CN38: =CA38-BO38 -> -80.7
B39: R13 | G39: =Data!W14 -> 93.49 | Q39: =Data!K14 -> 97.05 | AD39: 3.56 | AK39: TM30 Rg | BO39: =Data!W44 -> 97.1 | CA39: =Data!K44 -> 0 | CN39: =CA39-BO39 -> -97.1
B40: R14 | G40: =Data!W15 -> 73.55 | Q40: =Data!K15 -> 99.3 | AD40: 25.75
B41: R15 | G41: =Data!W16 -> 89.59 | Q41: =Data!K16 -> 95.47 | AD41: 5.88 | AK41: PPFD [µmol/m²s] | BO41: =Data!W142 -> 7.87 | CA41: =Data!K142 -> 10.76 | CN41: =CA41-BO41 -> 2.89
AK42: PPFD UV [µmol/m²s] | BO42: =Data!W143 -> 0.03 | CA42: =Data!K143 -> 0.2 | CN42: 0.17
B43: Re | G43: =Data!AC27 -> 72.74 | Q43: =Data!Q27 -> 96.51 | AD43: =Q43-G43 -> 23.77 | AK43: =IF(Data!$AE$2 = "DE", "PPFD Blau",IF(Data!$AE$2 = "UK","PPFD Blue",IF(Data!$AE$2="FR","PPFD Bleu","Language Error"))) & " [µmol/m²s]" -> PPFD Blue [µmol/m²s] | BO43: =Data!W145 -> 1.6 | CA43: =Data!K145 -> 3.09 | CN43: 1.49
B44: GAI | G44: =Data!AC28 -> 614.864 | Q44: =Data!Q28 -> 732 | AD44: =Q44-G44 -> 117.136 | AK44: =IF(Data!$AE$2 = "DE", "PPFD Grün",IF(Data!$AE$2 = "UK","PPFD Green",IF(Data!$AE$2="FR","PPFD Vert","Language Error"))) & " [µmol/m²s]" -> PPFD Green [µmol/m²s] | BO44: =Data!W147 -> 3.44 | CA44: =Data!K147 -> 3.97 | CN44: 0.53
AK45: =IF(Data!$AE$2 = "DE", "PPFD Rot",IF(Data!$AE$2 = "UK","PPFD Red",IF(Data!$AE$2="FR","PPFD Rouge","Language Error"))) & " [µmol/m²s]" -> PPFD Red [µmol/m²s] | BO45: =Data!W149 -> 2.83 | CA45: =Data!K149 -> 3.7 | CN45: 0.87
B46: TLCI | G46: =Data!AC30 -> 59 | Q46: =Data!Q30 -> 100 | AD46: =Q46-G46 -> 41 | AK46: PPFD FR [µmol/m²s] | BO46: =Data!W150 -> 0.46 | CA46: =Data!K150 -> 3.26 | CN46: 2.8
A51: ='Protocol 1 (5nm)'!A54:AA54 -> Company
A52: ='Protocol 1 (5nm)'!A55:AA55 -> Address
A53: ='Protocol 1 (5nm)'!A56:AA56 -> ZIP City
A55: ='Protocol 1 (5nm)'!A58:O58 -> Test location, | P55: ='Protocol 1 (5nm)'!P58:AA58 -> Date | BL55: ='Protocol 1 (5nm)'!BL58:CF58 -> First, last name of inspector | CG55: ='Protocol 1 (5nm)'!CG58:CX58 -> Phone number

Sheet Data
A1: Seriennummer | B1: 21C10666 | C1: Seriennummer | D1: 18C10567 | F1: 1 | G1: =IF(INDEX($A$1:$A$500,MATCH("Spe*",$A$1:$A$500,0)+F1)=0,"",INDEX($A$1:$A$500,MATCH("Spe*",$A$1:$A$500,0)+F1)) -> 380 | H1: =IF(INDEX($A$1:$A$500,MATCH("Spe*",$A$1:$A$500,0)+F1)=0,"",INDEX($B$1:$B$500,MATCH("Spe*",$A$1:$A$500,0)+F1)) -> 2.266782 | I1: CRI | J1: Ra | K1: =IF(ISNA(MATCH(I1,$A$1:$A$300,0)),IF($A$1="",NA(),INDEX($B$1:$B$300,MATCH(J1,$A$1:$A$300,0))),IF($A$1="",NA(),INDEX($B$1:$B$300,MATCH(I1,$A$1:$A$300,0)))) -> 97.45 | L1: =IF(K1="",NA(),IF(K1 < 0, 0, K1)) -> 97.45 | M1: =IF(G1="",NA(),ROUND(G1,0)) -> 380 | N1: =IF(H1="",NA(),H1) -> 2.266782 | P1: R15 | Q1: =IF($A$1="",NA(),INDEX($B$1:$B$300,MATCH(P1,$A$1:$A$300,0))) -> 95.47 | R1: 1 | S1: =IF(INDEX($C$1:$C$500,MATCH("Spe*",$C$1:$C$500,0)+R1)=0,"",INDEX($C$1:$C$500,MATCH("Spe*",$C$1:$C$500,0)+R1)) -> 380 | T1: =IF(INDEX($C$1:$C$500,MATCH("Spe*",$C$1:$C$500,0)+R1)=0,"",INDEX($D$1:$D$500,MATCH("Spe*",$C$1:$C$500,0)+R1)) -> 0.16852 | U1: CRI | V1: Ra | W1: =IF(ISNA(MATCH(U1,$C$1:$C$300,0)),IF($C$1="",NA(),INDEX($D$1:$D$300,MATCH(V1,$C$1:$C$300,0))),IF($C$1="",NA(),INDEX($D$1:$D$300,MATCH(U1,$C$1:$C$300,0)))) -> 81.76 | Y1: =IF(S1="",NA(),ROUND(S1,0)) -> 380 | Z1: =IF(T1="",NA(),T1) -> 0.16852 | AB1: R15 | AC1: =IF($C$1="",NA(),INDEX($D$1:$D$300,MATCH(AB1,$C$1:$C$300,0))) -> 89.59 | AG1: u | AH1: v | AI1: u' | AJ1: v' | AK1: x | AL1: y | AN1: Seriennummer
A2: Software Rev. | B2: 1.3.4 | C2: Software Rev. | D2: 1.3.0 | F2: =F1+1 -> 2 | G2: =IF(INDEX($A$1:$A$500,MATCH("Spe*",$A$1:$A$500,0)+F2)=0,"",INDEX($A$1:$A$500,MATCH("Spe*",$A$1:$A$500,0)+F2)) -> 385 | H2: =IF(INDEX($A$1:$A$500,MATCH("Spe*",$A$1:$A$500,0)+F2)=0,"",INDEX($B$1:$B$500,MATCH("Spe*",$A$1:$A$500,0)+F2)) -> 2.477966 | J2: R1 | K2: =IF($A$1="",NA(),INDEX($B$1:$B$300,MATCH(J2,$A$1:$A$300,0))) -> 96.71 | L2: =IF(K2="",NA(),IF(K2 < 0, 0, K2)) -> 96.71 | M2: 385 | N2: =IF(H2="",NA(),H2) -> 2.477966 | P2: R14 | Q2: 99.3 | R2: =R1+1 -> 2 | S2: =IF(INDEX($C$1:$C$500,MATCH("Spe*",$C$1:$C$500,0)+R2)=0,"",INDEX($C$1:$C$500,MATCH("Spe*",$C$1:$C$500,0)+R2)) -> 385 | T2: =IF(INDEX($C$1:$C$500,MATCH("Spe*",$C$1:$C$500,0)+R2)=0,"",INDEX($D$1:$D$500,MATCH("Spe*",$C$1:$C$500,0)+R2)) -> 0.08156 | V2: R1 | W2: =IF($C$1="",NA(),INDEX($D$1:$D$300,MATCH(V2,$C$1:$C$300,0))) -> 92.13 | Y2: 385 | Z2: =IF(T2="",NA(),T2) -> 0.08156 | AB2: R14 | AC2: 73.55 | AE2: UK | AG2: 0.18006 | AH2: 0.26352 | AI2: =AG2 -> 0.18006 | AJ2: =AH2*1.5 -> 0.39528 | AK2: =(9*AG2)/(6*AG2-16*AJ2+12) -> 0.2398710457 | AL2: =(4*AJ2)/(6*AG2-16*AJ2+12) -> 0.2340361285 | AN2: Software Rev.
A3: Zeit | B3: 14:26:00 | C3: Zeit | D3: 14:02:53 | F3: =F2+1 -> 3 | G3: 390 | H3: 2.830561 | J3: R2 | K3: 98.33 | L3: 98.33 | M3: 390 | N3: 2.830561 | P3: R13 | Q3: 97.05 | R3: =R2+1 -> 3 | S3: 390 | T3: 0.13953 | V3: R2 | W3: 90.56 | Y3: 390 | Z3: 0.13953 | AB3: R13 | AC3: 93.49 | AG3: 0.18066 | AH3: 0.26589 | AI3: =AG3 -> 0.18066 | AJ3: =AH3*1.5 -> 0.398835 | AK3: =(9*AG3)/(6*AG3-16*AJ3+12) -> 0.2425834751 | AL3: =(4*AJ3)/(6*AG3-16*AJ3+12) -> 0.2380180825 | AN3: Zeit
A4: Datum | B4: 22.04.2024 | C4: Datum | D4: 15.02.2021 | F4: 4 | G4: 395 | H4: 3.397185 | J4: R3 | K4: 99.17 | L4: 99.17 | M4: 395 | N4: 3.397185 | P4: R12 | Q4: 96.51 | R4: 4 | S4: 395 | T4: 0.22821 | V4: R3 | W4: 60.36 | Y4: 395 | Z4: 0.22821 | AB4: R12 | AC4: 53.37 | AG4: 0.18133 | AH4: 0.26846 | AI4: 0.18133 | AJ4: 0.40269 | AK4: 0.245595897 | AL4: 0.2424039946 | AN4: Datum
F5: 5 | G5: =IF(G4="","",IF(INDEX($A$1:$A$500,MATCH("Spe*",$A$1:$A$500,0)+F5)=0,"",INDEX($A$1:$A$500,MATCH("Spe*",$A$1:$A$500,0)+F5))) -> 400 | H5: =IF(H4="","",IF(INDEX($A$1:$A$500,MATCH("Spe*",$A$1:$A$500,0)+F5)=0,"",INDEX($B$1:$B$500,MATCH("Spe*",$A$1:$A$500,0)+F5))) -> 4.636063 | J5: R4 | K5: 96.5 | L5: 96.5 | M5: 400 | N5: 4.636063 | P5: R11 | Q5: 96.02 | R5: 5 | S5: =IF(S4="","",IF(INDEX($C$1:$C$500,MATCH("Spe*",$C$1:$C$500,0)+R5)=0,"",INDEX($C$1:$C$500,MATCH("Spe*",$C$1:$C$500,0)+R5))) -> 400 | T5: =IF(T4="","",IF(INDEX($C$1:$C$500,MATCH("Spe*",$C$1:$C$500,0)+R5)=0,"",INDEX($D$1:$D$500,MATCH("Spe*",$C$1:$C$500,0)+R5))) -> 1.38337 | V5: R4 | W5: 87.93 | Y5: 400 | Z5: 1.38337 | AB5: R11 | AC5: 70.99 | AG5: 0.18208 | AH5: 0.27119 | AI5: 0.18208 | AJ5: 0.406785 | AK5: 0.2488973135 | AL5: 0.2471384828
A6: Integrationszeit [ms] | B6: 2352 | C6: Integrationszeit [ms] | D6: 947 | F6: 6 | G6: =IF(G5="","",IF(INDEX($A$1:$A$500,MATCH("Spe*",$A$1:$A$500,0)+F6)=0,"",INDEX($A$1:$A$500,MATCH("Spe*",$A$1:$A$500,0)+F6))) -> 405 | H6: =IF(H5="","",IF(INDEX($A$1:$A$500,MATCH("Spe*",$A$1:$A$500,0)+F6)=0,"",INDEX($B$1:$B$500,MATCH("Spe*",$A$1:$A$500,0)+F6))) -> 5.753686 | J6: R5 | K6: 96.93 | L6: 96.93 | M6: 405 | N6: 5.753686 | P6: R10 | Q6: 96.71 | R6: 6 | S6: =IF(S5="","",IF(INDEX($C$1:$C$500,MATCH("Spe*",$C$1:$C$500,0)+R6)=0,"",INDEX($C$1:$C$500,MATCH("Spe*",$C$1:$C$500,0)+R6))) -> 405 | T6: =IF(T5="","",IF(INDEX($C$1:$C$500,MATCH("Spe*",$C$1:$C$500,0)+R6)=0,"",INDEX($D$1:$D$500,MATCH("Spe*",$C$1:$C$500,0)+R6))) -> 2.75771 | V6: R5 | W6: 82.79 | Y6: 405 | Z6: 2.75771 | AB6: R10 | AC6: 48.9 | AG6: 0.18293 | AH6: 0.27407 | AI6: 0.18293 | AJ6: 0.411105 | AK6: 0.2525146091 | AL6: 0.2522155248 | AN6: Integrationszeit [ms]
A7: E vis [lx] | B7: 618.2 | C7: E vis [lx] | D7: 618.98 | F7: 7 | G7: 410 | H7: 6.132161 | J7: R6 | K7: 98.08 | L7: 98.08 | M7: 410 | N7: 6.132161 | P7: R9 | Q7: 86.96 | R7: 7 | S7: 410 | T7: 1.68282 | V7: R6 | W7: 77.28 | Y7: 410 | Z7: 1.68282 | AB7: R9 | AC7: 7.09 | AG7: 0.18388 | AH7: 0.27709 | AI7: 0.18388 | AJ7: 0.415635 | AK7: 0.2564526927 | AL7: 0.2576335168 | AN7: E vis [lx]
A8: Ee [W/m²] | B8: 2.971 | C8: Ee [W/m²] | D8: 1.781 | F8: 8 | G8: 415 | H8: 6.739672 | J8: R7 | K8: 98.45 | L8: 98.45 | M8: 415 | N8: 6.739672 | P8: R8 | Q8: 95.4 | R8: 8 | S8: 415 | T8: 0.97008 | V8: R7 | W8: 91.05 | Y8: 415 | Z8: 0.97008 | AB8: R8 | AC8: 71.98 | AG8: 0.18494 | AH8: 0.28021 | AI8: 0.18494 | AJ8: 0.420315 | AK8: 0.2606991824 | AL8: 0.263330514 | AN8: Ee [W/m²]
A9: LER [lm/W] | B9: 208.0780882 | C9: LER [lm/W] | D9: 347.5 | F9: 9 | G9: 420 | H9: 6.924517 | J9: R8 | K9: 95.4 | L9: 95.4 | M9: 420 | N9: 6.924517 | P9: R7 | Q9: 98.45 | R9: 9 | S9: 420 | T9: 1.27929 | V9: R8 | W9: 71.98 | Y9: 420 | Z9: 1.27929 | AB9: R7 | AC9: 91.05 | AG9: 0.18611 | AH9: 0.28342 | AI9: 0.18611 | AJ9: 0.42513 | AK9: 0.2652575468 | AL9: 0.2693005711 | AN9: LER [lm/W]
A10: CCT [K] | B10: 6137 | C10: CCT [K] | D10: 3865 | F10: 10 | G10: 425 | H10: 6.893627 | J10: R9 | K10: 86.96 | L10: 86.96 | M10: 425 | N10: 6.893627 | P10: R6 | Q10: 98.08 | R10: 10 | S10: 425 | T10: 1.76498 | V10: R9 | W10: 7.09 | Y10: 425 | Z10: 1.76498 | AB10: R6 | AC10: 77.28 | AG10: 0.1874 | AH10: 0.28668 | AI10: 0.1874 | AJ10: 0.43002 | AK10: 0.2701118499 | AL10: 0.2754737287 | AN10: CCT [K]
A11: Duv | B11: 0.0059 | C11: Duv | D11: 0.0074 | F11: 11 | G11: 430 | H11: 6.746419 | J11: R10 | K11: 96.71 | L11: 96.71 | M11: 430 | N11: 6.746419 | P11: R5 | Q11: 96.93 | R11: 11 | S11: 430 | T11: 4.52638 | V11: R10 | W11: 48.9 | Y11: 430 | Z11: 4.52638 | AB11: R5 | AC11: 82.79 | AG11: 0.1888 | AH11: 0.28997 | AI11: 0.1888 | AJ11: 0.434955 | AK11: 0.2752400575 | AL11: 0.2818197722 | AN11: Duv
A12: TM30 Rf | B12: 0 | C12: TM30 Rf | D12: 80.7 | F12: 12 | G12: 435 | H12: 7.165364 | J12: R11 | K12: 96.02 | L12: 96.02 | M12: 435 | N12: 7.165364 | P12: R4 | Q12: 96.5 | R12: 12 | S12: 435 | T12: 10.78967 | V12: R11 | W12: 70.99 | Y12: 435 | Z12: 10.78967 | AB12: R4 | AC12: 87.93 | AG12: 0.19032 | AH12: 0.29326 | AI12: 0.19032 | AJ12: 0.43989 | AK12: 0.2806307015 | AL12: 0.2882785467 | AN12: TM30 Rf
A13: TM30 Rg | B13: 0 | C13: TM30 Rg | D13: 97.1 | F13: 13 | G13: 440 | H13: 7.857132 | J13: R12 | K13: 96.51 | L13: 96.51 | M13: 440 | N13: 7.857132 | P13: R3 | Q13: 99.17 | R13: 13 | S13: 440 | T13: 8.26235 | V13: R12 | W13: 53.37 | Y13: 440 | Z13: 8.26235 | AB13: R3 | AC13: 60.36 | AG13: 0.19462 | AH13: 0.30141 | AI13: 0.19462 | AJ13: 0.452115 | AK13: 0.2951829157 | AL13: 0.3047685494 | AN13: TM30 Rg
A14: R-Bin01 a | B14: 0 | C14: R-Bin01 a | D14: 0.972698 | F14: 14 | G14: 445 | H14: 8.469516 | J14: R13 | K14: 97.05 | L14: 97.05 | M14: 445 | N14: 8.469516 | P14: R2 | Q14: 98.33 | R14: 14 | S14: 445 | T14: 3.3389 | V14: R13 | W14: 93.49 | Y14: 445 | Z14: 3.3389 | AB14: R2 | AC14: 90.56 | AG14: 0.19962 | AH14: 0.30921 | AI14: 0.19962 | AJ14: 0.463815 | AK14: 0.3110056295 | AL14: 0.3211637134 | AN14: R-Bin01 a
A15: R-Bin01 b | B15: 0 | C15: R-Bin01 b | D15: 0.232073 | F15: 15 | G15: 450 | H15: 9.062076 | J15: R14 | K15: 99.3 | L15: 99.3 | M15: 450 | N15: 9.062076 | P15: R1 | Q15: 96.71 | R15: 15 | S15: 450 | T15: 3.29126 | V15: R14 | W15: 73.55 | Y15: 450 | Z15: 3.29126 | AB15: R1 | AC15: 92.13 | AG15: 0.20525 | AH15: 0.31647 | AI15: 0.20525 | AJ15: 0.474705 | AK15: 0.3277462555 | AL15: 0.3368960048 | AN15: R-Bin01 b
A16: R-Bin02 a | B16: 0 | C16: R-Bin02 a | D16: 0.818941 | F16: 16 | G16: 455 | H16: 9.385198 | J16: R15 | K16: 95.47 | L16: 95.47 | M16: 455 | N16: 9.385198 | O16: CRI | P16: Ra | Q16: =IF(ISNA(MATCH(O16,$A$1:$A$300,0)),IF($A$1="",NA(),INDEX($B$1:$B$300,MATCH(P16,$A$1:$A$300,0))),IF($A$1="",NA(),INDEX($B$1:$B$300,MATCH(O16,$A$1:$A$300,0)))) -> 97.45 | R16: 16 | S16: 455 | T16: 3.22952 | V16: R15 | W16: 89.59 | Y16: 455 | Z16: 3.22952 | AA16: CRI | AB16: Ra | AC16: =IF(ISNA(MATCH(AA16,$C$1:$C$300,0)),IF($C$1="",NA(),INDEX($D$1:$D$300,MATCH(AB16,$C$1:$C$300,0))),IF($C$1="",NA(),INDEX($D$1:$D$300,MATCH(AA16,$C$1:$C$300,0)))) -> 81.76 | AG16: 0.21142 | AH16: 0.32312 | AI16: 0.21142 | AJ16: 0.48468 | AK16: 0.3451041417 | AL16: 0.3516225216 | AN16: R-Bin02 a
A17: R-Bin02 b | B17: 0 | C17: R-Bin02 b | D17: 0.573878 | F17: 17 | G17: 460 | H17: 9.541563 | J17: Integrationtime [ms] | M17: 460 | N17: 9.541563 | R17: 17 | S17: 460 | T17: 3.13717 | V17: Integrationtime [ms] | Y17: 460 | Z17: 3.13717 | AG17: 0.21807 | AH17: 0.32909 | AI17: 0.21807 | AJ17: 0.493635 | AK17: 0.3627607546 | AL17: 0.3649621275 | AN17: R-Bin02 b
A18: R-Bin03 a | B18: 0 | C18: R-Bin03 a | D18: 0.550059 | F18: 18 | G18: 465 | H18: 9.447047 | J18: Integrationszeit [ms] | K18: =IF(ISNA(MATCH(J17,$A$1:$A$300,0)),IF($A$1="",NA(),INDEX($B$1:$B$300,MATCH(J18,$A$1:$A$300,0))),IF($A$1="",NA(),INDEX($B$1:$B$300,MATCH(J17,$A$1:$A$300,0)))) -> 2352 | M18: 465 | N18: 9.447047 | P18: measurement | Q18: Measured | R18: 18 | S18: 465 | T18: 2.90521 | V18: Integrationszeit [ms] | W18: =IF(ISNA(MATCH(V17,$C$1:$C$300,0)),IF($C$1="",NA(),INDEX($D$1:$D$300,MATCH(V18,$C$1:$C$300,0))),IF($C$1="",NA(),INDEX($D$1:$D$300,MATCH(V17,$C$1:$C$300,0)))) -> 947 | Y18: 465 | Z18: 2.90521 | AB18: reference | AC18: M_000002.CSV | AG18: 0.22511 | AH18: 0.33439 | AI18: 0.22511 | AJ18: 0.501585 | AK18: 0.380446172 | AL18: 0.3767562391 | AN18: R-Bin03 a
A19: R-Bin03 b | B19: 0 | C19: R-Bin03 b | D19: 0.835126 | F19: 19 | G19: 470 | H19: 9.376203 | M19: 470 | N19: 9.376203 | R19: 19 | S19: 470 | T19: 2.74721 | Y19: 470 | Z19: 2.74721 | AG19: 0.23247 | AH19: 0.33904 | AI19: 0.23247 | AJ19: 0.50856 | AK19: 0.3979242506 | AL19: 0.3868950486 | AN19: R-Bin03 b
A20: R-Bin04 a | B20: 0 | C20: R-Bin04 a | D20: 0.166876 | F20: 20 | G20: 475 | H20: 9.401905 | J20: Lambda Peak [nm] | K20: =IF($A$1="",NA(),INDEX($B$1:$B$300,MATCH(J20,$A$1:$A$300,0))) -> 459 | M20: 475 | N20: 9.401905 | P20: Time | R20: 20 | S20: 475 | T20: 2.66911 | V20: Lambda Peak [nm] | W20: =IF($C$1="",NA(),INDEX($D$1:$D$300,MATCH(V20,$C$1:$C$300,0))) -> 544 | Y20: 475 | Z20: 2.66911 | AB20: Time | AG20: 0.2401 | AH20: 0.34308 | AI20: 0.2401 | AJ20: 0.51462 | AK20: 0.4150245454 | AL20: 0.3953536611 | AN20: R-Bin04 a
A21: R-Bin04 b | B21: 0 | C21: R-Bin04 b | D21: 0.985978 | F21: 21 | G21: 480 | H21: 9.388743 | J21: Lambda Peak | K21: =IF($A$1="",NA(),INDEX($B$1:$B$300,MATCH(J21,$A$1:$A$300,0))) -> 9.54342 | M21: 480 | N21: 9.388743 | P21: Zeit | Q21: =IF(ISNA(MATCH(P20,$A$1:$A$300,0)),IF($A$1="",NA(),INDEX($B$1:$B$300,MATCH(P21,$A$1:$A$300,0))),IF($A$1="",NA(),INDEX($B$1:$B$300,MATCH(P20,$A$1:$A$300,0)))) -> 14:26:00 | R21: 21 | S21: 480 | T21: 3.95043 | V21: Lambda Peak | W21: =IF($C$1="",NA(),INDEX($D$1:$D$300,MATCH(V21,$C$1:$C$300,0))) -> 33.22699 | Y21: 480 | Z21: 3.95043 | AB21: Zeit | AC21: =IF(ISNA(MATCH(AB20,$C$1:$C$300,0)),IF($C$1="",NA(),INDEX($D$1:$D$300,MATCH(AB21,$C$1:$C$300,0))),IF($C$1="",NA(),INDEX($D$1:$D$300,MATCH(AB20,$C$1:$C$300,0)))) -> 14:02:53 | AG21: 0.24702 | AH21: 0.34655 | AI21: 0.24702 | AJ21: 0.519825 | AK21: 0.4304384192 | AL21: 0.4025812597 | AN21: R-Bin04 b
A22: R-Bin05 a | B22: 0 | C22: R-Bin05 a | D22: -0.115114 | F22: 22 | G22: 485 | H22: 9.154291 | M22: 485 | N22: 9.154291 | P22: Date | R22: 22 | S22: 485 | T22: 7.53358 | Y22: 485 | Z22: 7.53358 | AB22: Date | AG22: 0.25591 | AH22: 0.34951 | AI22: 0.25591 | AJ22: 0.524265 | AK22: 0.4474629023 | AL22: 0.4074160421 | AN22: R-Bin05 a
A23: R-Bin05 b | B23: 0 | C23: R-Bin05 b | D23: 0.993352 | F23: 23 | G23: 490 | H23: 9.029051 | J23: x | K23: =IF($A$1="",NA(),INDEX($B$1:$B$300,MATCH(J23,$A$1:$A$300,0))) -> 0.3186 | M23: 490 | N23: 9.029051 | P23: Datum | Q23: =IF(ISNA(MATCH(P22,$A$1:$A$300,0)),IF($A$1="",NA(),INDEX($B$1:$B$300,MATCH(P23,$A$1:$A$300,0))),IF($A$1="",NA(),INDEX($B$1:$B$300,MATCH(P22,$A$1:$A$300,0)))) -> 22.04.2024 | R23: 23 | S23: 490 | T23: 8.99598 | V23: x | W23: =IF($C$1="",NA(),INDEX($D$1:$D$300,MATCH(V23,$C$1:$C$300,0))) -> 0.3926 | Y23: 490 | Z23: 8.99598 | AB23: Datum | AC23: =IF(ISNA(MATCH(AB22,$C$1:$C$300,0)),IF($C$1="",NA(),INDEX($D$1:$D$300,MATCH(AB23,$C$1:$C$300,0))),IF($C$1="",NA(),INDEX($D$1:$D$300,MATCH(AB22,$C$1:$C$300,0)))) -> 15.02.2021 | AG23: 0.264 | AH23: 0.352 | AI23: 0.264 | AJ23: 0.528 | AK23: 0.4626168224 | AL23: 0.4112149533 | AN23: R-Bin05 b
A24: R-Bin06 a | B24: 0 | C24: R-Bin06 a | D24: -0.550293 | F24: 24 | G24: 495 | H24: 9.191137 | J24: y | K24: 0.3401 | M24: 495 | N24: 9.191137 | P24: Ee [W/m2] | R24: 24 | S24: 495 | T24: 6.70813 | V24: y | W24: 0.4006 | Y24: 495 | Z24: 6.70813 | AB24: Ee [W/m≤] | AG24: 0.27218 | AH24: 0.35407 | AI24: 0.27218 | AJ24: 0.531105 | AK24: 0.4770066597 | AL24: 0.4136815048 | AN24: R-Bin06 a
A25: R-Bin06 b | B25: 0 | C25: R-Bin06 b | D25: 0.834972 | F25: 25 | G25: 500 | H25: 9.110776 | J25: u' | K25: 0.1978 | M25: 500 | N25: 9.110776 | P25: Ee [W/m²] | Q25: =IF(ISNA(MATCH(P24,$A$1:$A$300,0)),IF($A$1="",NA(),INDEX($B$1:$B$300,MATCH(P25,$A$1:$A$300,0))),IF($A$1="",NA(),INDEX($B$1:$B$300,MATCH(P24,$A$1:$A$300,0)))) -> 2.971 | R25: 25 | S25: 500 | T25: 3.78338 | V25: u' | W25: 0.2236 | Y25: 500 | Z25: 3.78338 | AB25: Ee [W/m²] | AC25: =IF(ISNA(MATCH(AB24,$C$1:$C$300,0)),IF($C$1="",NA(),INDEX($D$1:$D$300,MATCH(AB25,$C$1:$C$300,0))),IF($C$1="",NA(),INDEX($D$1:$D$300,MATCH(AB24,$C$1:$C$300,0)))) -> 1.781 | AG25: 0.28039 | AH25: 0.35577 | AI25: 0.28039 | AJ25: 0.533655 | AK25: 0.4905868356 | AL25: 0.4149840781 | AN25: R-Bin06 b
A26: R-Bin07 a | B26: 0 | C26: R-Bin07 a | D26: -0.857507 | F26: 26 | G26: 505 | H26: 9.107321 | J26: v' | K26: 0.475 | M26: 505 | N26: 9.107321 | P26: LER [lm/W] | Q26: =IF($A$1="",NA(),INDEX($B$1:$B$300,MATCH(P26,$A$1:$A$300,0))) -> 208.0780882 | R26: 26 | S26: 505 | T26: 2.01311 | V26: v' | W26: 0.5134 | Y26: 505 | Z26: 2.01311 | AB26: LER [lm/W] | AC26: =IF($C$1="",NA(),INDEX($D$1:$D$300,MATCH(AB26,$C$1:$C$300,0))) -> 347.5 | AG26: 0.28863 | AH26: 0.35714 | AI26: 0.28863 | AJ26: 0.53571 | AK26: 0.5033834455 | AL26: 0.4152452707 | AN26: R-Bin07 a
A27: R-Bin07 b | B27: 0 | C27: R-Bin07 b | D27: 0.514473 | F27: 27 | G27: 510 | H27: 9.049134 | J27: u | K27: 0.1978 | M27: 510 | N27: 9.049134 | P27: Re | Q27: =IF($A$1="",NA(),INDEX($B$1:$B$300,MATCH(P27,$A$1:$A$300,0))) -> 96.51 | R27: 27 | S27: 510 | T27: 1.45226 | V27: u | W27: 0.2236 | Y27: 510 | Z27: 1.45226 | AB27: Re | AC27: =IF($C$1="",NA(),INDEX($D$1:$D$300,MATCH(AB27,$C$1:$C$300,0))) -> 72.74 | AG27: 0.29685 | AH27: 0.35823 | AI27: 0.29685 | AJ27: 0.537345 | AK27: 0.5154063408 | AL27: 0.41465165 | AN27: R-Bin07 b
A28: R-Bin08 a | B28: 0 | C28: R-Bin08 a | D28: -0.990076 | F28: 28 | G28: 515 | H28: 8.892465 | J28: v | K28: 0.3167 | M28: 515 | N28: 8.892465 | P28: GAI | Q28: =IF(ISNA(MATCH(O28,$A$1:$A$300,0)),IF($A$1="",NA(),INDEX($B$1:$B$300,MATCH(P28,$A$1:$A$300,0))),IF($A$1="",NA(),INDEX($B$1:$B$300,MATCH(O28,$A$1:$A$300,0)))) -> 732 | R28: 28 | S28: 515 | T28: 1.31438 | V28: v | W28: 0.3423 | Y28: 515 | Z28: 1.31438 | AB28: GAI | AC28: =IF(ISNA(MATCH(AA28,$C$1:$C$300,0)),IF($C$1="",NA(),INDEX($D$1:$D$300,MATCH(AB28,$C$1:$C$300,0))),IF($C$1="",NA(),INDEX($D$1:$D$300,MATCH(AA28,$C$1:$C$300,0)))) -> 614.864 | AG28: 0.30505 | AH28: 0.35907 | AI28: 0.30505 | AJ28: 0.538605 | AK28: 0.5266929107 | AL28: 0.4133084706 | AN28: R-Bin08 a
A29: R-Bin08 b | B29: 0 | C29: R-Bin08 b | D29: 0.14053 | F29: 29 | G29: 520 | H29: 8.797625 | M29: 520 | N29: 8.797625 | R29: 29 | S29: 520 | T29: 1.21446 | Y29: 520 | Z29: 1.21446 | AG29: 0.3132 | AH29: 0.35968 | AI29: 0.3132 | AJ29: 0.53952 | AK29: 0.5372335559 | AL29: 0.4113072912 | AN29: R-Bin08 b
A30: R-Bin09 a | B30: 0 | C30: R-Bin09 a | D30: -0.992237 | F30: 30 | G30: 525 | H30: 8.989483 | J30: CCT [K] | K30: =IF($A$1="",NA(),INDEX($B$1:$B$300,MATCH(J30,$A$1:$A$300,0))) -> 6137 | M30: 525 | N30: 8.989483 | P30: TLCI | Q30: =IF($A$1="",NA(),INDEX($B$1:$B$300,MATCH(P30,$A$1:$A$300,0))) -> 100 | R30: 30 | S30: 525 | T30: 1.34139 | V30: CCT [K] | W30: =IF($C$1="",NA(),INDEX($D$1:$D$300,MATCH(V30,$C$1:$C$300,0))) -> 3865 | Y30: 525 | Z30: 1.34139 | AB30: TLCI | AC30: =IF($C$1="",NA(),INDEX($D$1:$D$300,MATCH(AB30,$C$1:$C$300,0))) -> 59 | AG30: 0.32129 | AH30: 0.36011 | AI30: 0.32129 | AJ30: 0.540165 | AK30: 0.5471249361 | AL30: 0.4088210251 | AN30: R-Bin09 a
A31: R-Bin09 b | B31: 0 | C31: R-Bin09 b | D31: -0.124364 | F31: 31 | G31: 530 | H31: 9.111626 | J31: Duv | K31: =IF($A$1="",NA(),INDEX($B$1:$B$300,MATCH(J31,$A$1:$A$300,0))) -> 0.0059 | M31: 530 | N31: 9.111626 | P31: Ref.Type | Q31: =IF(K30<3400,"Plank",IF(K30>5000,"Daylight","Plank-Daylight Mix")) -> Daylight | R31: 31 | S31: 530 | T31: 2.30227 | V31: Duv | W31: =IF($C$1="",NA(),INDEX($D$1:$D$300,MATCH(V31,$C$1:$C$300,0))) -> 0.0074 | Y31: 530 | Z31: 2.30227 | AB31: Ref.Type | AC31: =IF(W30<3400,"P",IF(W30>5000,"D","M")) -> M | AG31: 0.32931 | AH31: 0.36038 | AI31: 0.32931 | AJ31: 0.54057 | AK31: 0.5563984726 | AL31: 0.4059293301 | AN31: R-Bin09 b
A32: R-Bin10 a | B32: 0 | C32: R-Bin10 a | D32: -0.865779 | F32: 32 | G32: 535 | H32: 9.191043 | J32: E vis [fc] | M32: 535 | N32: 9.191043 | O32: =IF(Q32="",NA(),IF(Q32 < 0, 0, Q32)) -> 99 | P32: Q1 | Q32: =IF($A$1="",NA(),INDEX($B$1:$B$300,MATCH(P32,$A$1:$A$300,0))) -> 99 | R32: 32 | S32: 535 | T32: 7.08557 | V32: E vis [fc] | Y32: 535 | Z32: 7.08557 | AB32: Q1 | AC32: =IF($C$1="",NA(),INDEX($D$1:$D$300,MATCH(AB32,$C$1:$C$300,0))) -> 87 | AG32: 0.33724 | AH32: 0.36051 | AI32: 0.33724 | AJ32: 0.540765 | AK32: 0.565080429 | AL32: 0.4027144772 | AN32: R-Bin10 a
A33: R-Bin10 b | B33: 0 | C33: R-Bin10 b | D33: -0.500426 | F33: 33 | G33: 540 | H33: 9.068149 | J33: E vis [lx] | K33: =IF(ISNA(MATCH(J32,$A$1:$A$300,0)),IF($A$1="",NA(),INDEX($B$1:$B$300,MATCH(J33,$A$1:$A$300,0))),IF($A$1="",NA(),INDEX($B$1:$B$300,MATCH(J32,$A$1:$A$300,0)))) -> 618.2 | M33: 540 | N33: 9.068149 | O33: =IF(Q33="",NA(),IF(Q33 < 0, 0, Q33)) -> 99 | P33: Q2 | Q33: 99 | R33: 33 | S33: 540 | T33: 22.75567 | V33: E vis [lx] | W33: =IF(ISNA(MATCH(V32,$C$1:$C$300,0)),IF($C$1="",NA(),INDEX($D$1:$D$300,MATCH(V33,$C$1:$C$300,0))),IF($C$1="",NA(),INDEX($D$1:$D$300,MATCH(V32,$C$1:$C$300,0)))) -> 618.98 | Y33: 540 | Z33: 22.75567 | AB33: Q2 | AC33: 95 | AG33: 0.37 | AH33: 0.3598 | AI33: =AG33 -> 0.37 | AJ33: =AH33*1.5 -> 0.5397 | AK33: =(9*AG33)/(6*AG33-16*AJ33+12) -> 0.5962612806 | AL33: =(4*AJ33)/(6*AG33-16*AJ33+12) -> 0.386549205 | AN33: R-Bin10 b
A34: R-Bin11 a | B34: 0 | C34: R-Bin11 a | D34: -0.583895 | F34: 34 | G34: 545 | H34: 9.013476 | M34: 545 | N34: 9.013476 | O34: 99 | P34: Q3 | Q34: 99 | R34: 34 | S34: 545 | T34: 32.73231 | Y34: 545 | Z34: 32.73231 | AB34: Q3 | AC34: 95 | AG34: 0.4 | AH34: 0.357 | AI34: =AG34 -> 0.4 | AJ34: =AH34*1.5 -> 0.5355 | AK34: =(9*AG34)/(6*AG34-16*AJ34+12) -> 0.6172839506 | AL34: =(4*AJ34)/(6*AG34-16*AJ34+12) -> 0.3672839506 | AN34: R-Bin11 a
A35: R-Bin11 b | B35: 0 | C35: R-Bin11 b | D35: -0.811829 | F35: 35 | G35: 550 | H35: 9.01221 | J35: Flicker Index | K35: =IF($A$1="",NA(),INDEX($B$1:$B$300,MATCH(J35,$A$1:$A$300,0))) -> 0.001261 | M35: 550 | N35: 9.01221 | O35: 99 | P35: Q4 | Q35: 99 | R35: 35 | S35: 550 | T35: 20.21733 | V35: Flicker Index | W35: =IF($C$1="",NA(),INDEX($D$1:$D$300,MATCH(V35,$C$1:$C$300,0))) -> 0.079 | Y35: 550 | Z35: 20.21733 | AB35: Q4 | AC35: 73 | AN35: R-Bin11 b
A36: R-Bin12 a | B36: 0 | C36: R-Bin12 a | D36: -0.328418 | F36: 36 | G36: 555 | H36: 8.875074 | J36: Flicker [Hz] | K36: =IF($A$1="",NA(),INDEX($B$1:$B$300,MATCH(J36,$A$1:$A$300,0))) -> 0 | M36: 555 | N36: 8.875074 | O36: 99 | P36: Q5 | Q36: 99 | R36: 36 | S36: 555 | T36: 7.17197 | V36: Flicker [Hz] | W36: =IF($C$1="",NA(),INDEX($D$1:$D$300,MATCH(V36,$C$1:$C$300,0))) -> 99.9 | Y36: 555 | Z36: 7.17197 | AB36: Q5 | AC36: 55 | AN36: R-Bin12 a
A37: R-Bin12 b | B37: 0 | C37: R-Bin12 b | D37: -0.944532 | F37: 37 | G37: 560 | H37: 8.7054 | J37: Flicker [%] | K37: =IF($A$1="",NA(),INDEX($B$1:$B$300,MATCH(J37,$A$1:$A$300,0))) -> 1.052689 | M37: 560 | N37: 8.7054 | O37: 99 | P37: Q6 | Q37: 99 | R37: 37 | S37: 560 | T37: 2.561 | V37: Flicker [%] | W37: =IF($C$1="",NA(),INDEX($D$1:$D$300,MATCH(V37,$C$1:$C$300,0))) -> 27.7 | Y37: 560 | Z37: 2.561 | AB37: Q6 | AC37: 55 | AN37: R-Bin12 b
A38: R-Bin13 a | B38: 0 | C38: R-Bin13 a | D38: 0.16762 | F38: 38 | G38: 565 | H38: 8.465311 | J38: Excitation Purity [%] | M38: 565 | N38: 8.465311 | O38: 99 | P38: Q7 | Q38: 99 | R38: 38 | S38: 565 | T38: 1.50362 | V38: Excitation Purity [%] | Y38: 565 | Z38: 1.50362 | AB38: Q7 | AC38: 99 | AN38: R-Bin13 a
A39: R-Bin13 b | B39: 0 | C39: R-Bin13 b | D39: -0.985852 | F39: 39 | G39: 570 | H39: 8.317036 | J39: Farbreinheit [%] | K39: =IF(ISNA(MATCH(J38,$A$1:$A$300,0)),IF($A$1="",NA(),INDEX($B$1:$B$300,MATCH(J39,$A$1:$A$300,0))),IF($A$1="",NA(),INDEX($B$1:$B$300,MATCH(J38,$A$1:$A$300,0)))) -> 4.6 | M39: 570 | N39: 8.317036 | O39: 99 | P39: Q8 | Q39: 99 | R39: 39 | S39: 570 | T39: 1.94464 | V39: Farbreinheit [%] | W39: =IF(ISNA(MATCH(V38,$C$1:$C$300,0)),IF($C$1="",NA(),INDEX($D$1:$D$300,MATCH(V39,$C$1:$C$300,0))),IF($C$1="",NA(),INDEX($D$1:$D$300,MATCH(V38,$C$1:$C$300,0)))) -> 38 | Y39: 570 | Z39: 1.94464 | AB39: Q8 | AC39: 87 | AN39: R-Bin13 b
A40: R-Bin14 a | B40: 0 | C40: R-Bin14 a | D40: 0.461854 | F40: 40 | G40: 575 | H40: 8.171592 | J40: Dominante Wellenlänge [nm] | K40: =IF(ISNA(MATCH(J41,$A$1:$A$300,0)),IF($A$1="",NA(),INDEX($B$1:$B$300,MATCH("Dominante Wellenl*",$A$1:$A$300,0))),IF($A$1="",NA(),INDEX($B$1:$B$300,MATCH(J41,$A$1:$A$300,0)))) -> 495 | M40: 575 | N40: 8.171592 | O40: 99 | P40: Q9 | Q40: 99 | R40: 40 | S40: 575 | T40: 4.25844 | V40: Dominante Wellenlänge [nm] | W40: =IF(ISNA(MATCH(V41,$C$1:$C$300,0)),IF($C$1="",NA(),INDEX($D$1:$D$300,MATCH(V40,$C$1:$C$300,0))),IF($C$1="",NA(),INDEX($D$1:$D$300,MATCH(V41,$C$1:$C$300,0)))) -> 576 | Y40: 575 | Z40: 4.25844 | AB40: Q9 | AC40: 90 | AN40: R-Bin14 a
A41: R-Bin14 b | B41: 0 | C41: R-Bin14 b | D41: -0.886956 | F41: 41 | G41: 580 | H41: 8.10016 | J41: Dominant wavelength [nm] | M41: 580 | N41: 8.10016 | O41: 99 | P41: Q10 | Q41: 99 | R41: 41 | S41: 580 | T41: 7.98112 | V41: Dominant wavelength [nm] | Y41: 580 | Z41: 7.98112 | AB41: Q10 | AC41: 98 | AN41: R-Bin14 b
A42: R-Bin15 a | B42: 0 | C42: R-Bin15 a | D42: 0.799754 | F42: 42 | G42: 585 | H42: 8.023732 | M42: 585 | N42: 8.023732 | O42: 99 | P42: Q11 | Q42: 99 | R42: 42 | S42: 585 | T42: 10.12635 | Y42: 585 | Z42: 10.12635 | AB42: Q11 | AC42: 34 | AN42: R-Bin15 a
A43: R-Bin15 b | B43: 0 | C43: R-Bin15 b | D43: -0.600328 | F43: 43 | G43: 590 | H43: 7.780416 | J43: TM30 Rf | K43: =IF($A$1="",NA(),INDEX($B$1:$B$300,MATCH(J43,$A$1:$A$300,0))) -> 0 | M43: 590 | N43: 7.780416 | O43: 99 | P43: Q12 | Q43: 99 | R43: 43 | S43: 590 | T43: 9.03433 | V43: TM30 Rf | W43: =IF($C$1="",NA(),INDEX($D$1:$D$300,MATCH(V43,$C$1:$C$300,0))) -> 80.7 | Y43: 590 | Z43: 9.03433 | AB43: Q12 | AC43: 80 | AN43: R-Bin15 b
A44: R-Bin16 a | B44: 0 | C44: R-Bin16 a | D44: 0.986417 | F44: 44 | G44: 595 | H44: 7.759864 | J44: TM30 Rg | K44: 0 | M44: 595 | N44: 7.759864 | O44: 99 | P44: Q13 | Q44: 99 | R44: 44 | S44: 595 | T44: 6.42946 | V44: TM30 Rg | W44: 97.1 | Y44: 595 | Z44: 6.42946 | AB44: Q13 | AC44: 42 | AN44: R-Bin16 a
A45: R-Bin16 b | B45: 0 | C45: R-Bin16 b | D45: -0.164259 | F45: 45 | G45: 600 | H45: 7.767684 | J45: R-Bin01 a | K45: 0 | M45: 600 | N45: 7.767684 | O45: 99 | P45: Q14 | Q45: 99 | R45: 45 | S45: 600 | T45: 5.66013 | V45: R-Bin01 a | W45: 0.972698 | Y45: 600 | Z45: 5.66013 | AB45: Q14 | AC45: 90 | AN45: R-Bin16 b
A46: T-Bin01 a | B46: 0 | C46: T-Bin01 a | D46: 0.879262 | F46: 46 | G46: 605 | H46: 7.731814 | J46: R-Bin01 b | K46: 0 | M46: 605 | N46: 7.731814 | O46: 99 | P46: Q15 | Q46: 99 | R46: 46 | S46: 605 | T46: 10.57896 | V46: R-Bin01 b | W46: 0.232073 | Y46: 605 | Z46: 10.57896 | AB46: Q15 | AC46: 60 | AN46: T-Bin01 a
A47: T-Bin01 b | B47: 0 | C47: T-Bin01 b | D47: 0.179411 | F47: 47 | G47: 610 | H47: 7.620013 | J47: R-Bin02 a | K47: 0 | M47: 610 | N47: 7.620013 | O47: 99 | P47: Q16 | Q47: 99 | R47: 47 | S47: 610 | T47: 22.9821 | V47: R-Bin02 a | W47: 0.818941 | Y47: 610 | Z47: 22.9821 | AB47: Q16 | AC47: 59 | AN47: T-Bin01 b
A48: T-Bin02 a | B48: 0 | C48: T-Bin02 a | D48: 0.797134 | F48: 48 | G48: 615 | H48: 7.450061 | J48: R-Bin02 b | K48: 0 | M48: 615 | N48: 7.450061 | O48: 99 | P48: Q17 | Q48: 99 | R48: 48 | S48: 615 | T48: 22.81809 | V48: R-Bin02 b | W48: 0.573878 | Y48: 615 | Z48: 22.81809 | AB48: Q17 | AC48: 63 | AN48: T-Bin02 a
A49: T-Bin02 b | B49: 0 | C49: T-Bin02 b | D49: 0.560921 | F49: 49 | G49: 620 | H49: 7.38654 | J49: R-Bin03 a | K49: 0 | M49: 620 | N49: 7.38654 | O49: 99 | P49: Q18 | Q49: 99 | R49: 49 | S49: 620 | T49: 12.55905 | V49: R-Bin03 a | W49: 0.550059 | Y49: 620 | Z49: 12.55905 | AB49: Q18 | AC49: 43 | AN49: T-Bin02 b
A50: T-Bin03 a | B50: 0 | C50: T-Bin03 a | D50: 0.463883 | F50: 50 | G50: 625 | H50: 7.204806 | J50: R-Bin03 b | K50: 0 | M50: 625 | N50: 7.204806 | P50: R Lightness | Q50: 0 | R50: 50 | S50: 625 | T50: 8.23466 | V50: R-Bin03 b | W50: 0.835126 | Y50: 625 | Z50: 8.23466 | AB50: R Lightness | AC50: 4 | AN50: T-Bin03 a
A51: T-Bin03 b | B51: 0 | C51: T-Bin03 b | D51: 0.841867 | F51: 51 | G51: 630 | H51: 7.072663 | J51: R-Bin04 a | K51: 0 | M51: 630 | N51: 7.072663 | P51: R Chroma | Q51: 0 | R51: 51 | S51: 630 | T51: 6.04985 | V51: R-Bin04 a | W51: 0.166876 | Y51: 630 | Z51: 6.04985 | AB51: R Chroma | AC51: 2 | AN51: T-Bin03 b
A52: T-Bin04 a | B52: 0 | C52: T-Bin04 a | D52: 0.043273 | F52: 52 | G52: 635 | H52: 7.087899 | J52: R-Bin04 b | K52: 0 | M52: 635 | N52: 7.087899 | P52: R Hue | Q52: 0 | R52: 52 | S52: 635 | T52: 3.66927 | V52: R-Bin04 b | W52: 0.985978 | Y52: 635 | Z52: 3.66927 | AB52: R Hue | AC52: 0 | AN52: T-Bin04 a
A53: T-Bin04 b | B53: 0 | C53: T-Bin04 b | D53: 1.036959 | F53: 53 | G53: 640 | H53: 7.041917 | J53: R-Bin05 a | K53: 0 | M53: 640 | N53: 7.041917 | P53: R/Y Lightness | Q53: 0 | R53: 53 | S53: 640 | T53: 1.92031 | V53: R-Bin05 a | W53: -0.115114 | Y53: 640 | Z53: 1.92031 | AB53: R/Y Lightness | AC53: 0 | AN53: T-Bin04 b
A54: T-Bin05 a | B54: 0 | C54: T-Bin05 a | D54: -0.212446 | F54: 54 | G54: 645 | H54: 6.898617 | J54: R-Bin05 b | K54: 0 | M54: 645 | N54: 6.898617 | P54: R/Y Chroma | Q54: 0 | R54: 54 | S54: 645 | T54: 1.82274 | V54: R-Bin05 b | W54: 0.993352 | Y54: 645 | Z54: 1.82274 | AB54: R/Y Chroma | AC54: 0 | AN54: T-Bin05 a
A55: T-Bin05 b | B55: 0 | C55: T-Bin05 b | D55: 1.055511 | F55: 55 | G55: 650 | H55: 6.764739 | J55: R-Bin06 a | K55: 0 | M55: 650 | N55: 6.764739 | P55: R/Y Hue | Q55: 0 | R55: 55 | S55: 650 | T55: 1.99395 | V55: R-Bin06 a | W55: -0.550293 | Y55: 650 | Z55: 1.99395 | AB55: R/Y Hue | AC55: 0 | AN55: T-Bin05 b
A56: T-Bin06 a | B56: 0 | C56: T-Bin06 a | D56: -0.577882 | F56: 56 | G56: 655 | H56: 6.629961 | J56: R-Bin06 b | K56: 0 | M56: 655 | N56: 6.629961 | P56: Y Lightness | Q56: 0 | R56: 56 | S56: 655 | T56: 1.76344 | V56: R-Bin06 b | W56: 0.834972 | Y56: 655 | Z56: 1.76344 | AB56: Y Lightness | AC56: -2 | AN56: T-Bin06 a
A57: T-Bin06 b | B57: 0 | C57: T-Bin06 b | D57: 0.882361 | F57: 57 | G57: 660 | H57: 6.627166 | J57: R-Bin07 a | K57: 0 | M57: 660 | N57: 6.627166 | P57: Y Chroma | Q57: 0 | R57: 57 | S57: 660 | T57: 1.52664 | V57: R-Bin07 a | W57: -0.857507 | Y57: 660 | Z57: 1.52664 | AB57: Y Chroma | AC57: 0 | AN57: T-Bin06 b
A58: T-Bin07 a | B58: 0 | C58: T-Bin07 a | D58: -0.791004 | F58: 58 | G58: 665 | H58: 6.706842 | J58: R-Bin07 b | K58: 0 | M58: 665 | N58: 6.706842 | P58: Y Hue | Q58: 0 | R58: 58 | S58: 665 | T58: 1.48909 | V58: R-Bin07 b | W58: 0.514473 | Y58: 665 | Z58: 1.48909 | AB58: Y Hue | AC58: -5 | AN58: T-Bin07 a
A59: T-Bin07 b | B59: 0 | C59: T-Bin07 b | D59: 0.572846 | F59: 59 | G59: 670 | H59: 6.675735 | J59: R-Bin08 a | K59: 0 | M59: 670 | N59: 6.675735 | P59: Y/G Lightness | Q59: 0 | R59: 59 | S59: 670 | T59: 1.36496 | V59: R-Bin08 a | W59: -0.990076 | Y59: 670 | Z59: 1.36496 | AB59: Y/G Lightness | AC59: -2 | AN59: T-Bin07 b
A60: T-Bin08 a | B60: 0 | C60: T-Bin08 a | D60: -0.927338 | F60: 60 | G60: 675 | H60: 6.562427 | J60: R-Bin08 b | K60: 0 | M60: 675 | N60: 6.562427 | P60: Y/G Chroma | Q60: 0 | R60: 60 | S60: 675 | T60: 1.21586 | V60: R-Bin08 b | W60: 0.14053 | Y60: 675 | Z60: 1.21586 | AB60: Y/G Chroma | AC60: -3 | AN60: T-Bin08 a
A61: T-Bin08 b | B61: 0 | C61: T-Bin08 b | D61: 0.187939 | F61: 61 | G61: 680 | H61: 6.349692 | J61: R-Bin09 a | K61: 0 | M61: 680 | N61: 6.349692 | P61: Y/G Hue | Q61: 0 | R61: 61 | S61: 680 | T61: 1.29491 | V61: R-Bin09 a | W61: -0.992237 | Y61: 680 | Z61: 1.29491 | AB61: Y/G Hue | AC61: -2 | AN61: T-Bin08 b
A62: T-Bin09 a | B62: 0 | C62: T-Bin09 a | D62: -0.918624 | F62: 62 | G62: 685 | H62: 5.958326 | J62: R-Bin09 b | K62: 0 | M62: 685 | N62: 5.958326 | P62: G Lightness | Q62: 0 | R62: 62 | S62: 685 | T62: 1.24317 | V62: R-Bin09 b | W62: -0.124364 | Y62: 685 | Z62: 1.24317 | AB62: G Lightness | AC62: -3 | AN62: T-Bin09 a
A63: T-Bin09 b | B63: 0 | C63: T-Bin09 b | D63: -0.084934 | F63: 63 | G63: 690 | H63: 5.766793 | J63: R-Bin10 a | K63: 0 | M63: 690 | N63: 5.766793 | P63: G Chroma | Q63: 0 | R63: 63 | S63: 690 | T63: 1.28863 | V63: R-Bin10 a | W63: -0.865779 | Y63: 690 | Z63: 1.28863 | AB63: G Chroma | AC63: -3 | AN63: T-Bin09 b
A64: T-Bin10 a | B64: 0 | C64: T-Bin10 a | D64: -0.688981 | F64: 64 | G64: 695 | H64: 6.005594 | J64: R-Bin10 b | K64: 0 | M64: 695 | N64: 6.005594 | P64: G Hue | Q64: =IF($A$1="",NA(),INDEX($B$1:$B$300,MATCH(P64,$A$1:$A$300,0))) -> 0 | R64: 64 | S64: 695 | T64: 1.11232 | V64: R-Bin10 b | W64: -0.500426 | Y64: 695 | Z64: 1.11232 | AB64: G Hue | AC64: =IF($C$1="",NA(),INDEX($D$1:$D$300,MATCH(AB64,$C$1:$C$300,0))) -> 0 | AN64: T-Bin10 a
A65: T-Bin10 b | B65: 0 | C65: T-Bin10 b | D65: -0.539379 | F65: 65 | G65: 700 | H65: 6.268607 | J65: R-Bin11 a | K65: 0 | M65: 700 | N65: 6.268607 | P65: G/C Lightness | Q65: 0 | R65: 65 | S65: 700 | T65: 1.27946 | V65: R-Bin11 a | W65: -0.583895 | Y65: 700 | Z65: 1.27946 | AB65: G/C Lightness | AC65: -3 | AN65: T-Bin10 b
A66: T-Bin11 a | B66: 0 | C66: T-Bin11 a | D66: -0.436327 | F66: 66 | G66: 705 | H66: 6.481359 | J66: R-Bin11 b | K66: 0 | M66: =IF(G66="",NA(),ROUND(G66,0)) -> 705 | N66: =IF(H66="",NA(),H66) -> 6.481359 | P66: G/C Chroma | Q66: 0 | R66: 66 | S66: 705 | T66: 2.53849 | V66: R-Bin11 b | W66: -0.811829 | Y66: =IF(S66="",NA(),ROUND(S66,0)) -> 705 | Z66: =IF(T66="",NA(),T66) -> 2.53849 | AB66: G/C Chroma | AC66: -3 | AN66: T-Bin11 a
A67: T-Bin11 b | B67: 0 | C67: T-Bin11 b | D67: -0.843627 | F67: =F66+1 -> 67 | G67: 710 | H67: 6.58508 | J67: R-Bin12 a | K67: 0 | M67: 710 | N67: 6.58508 | P67: G/C Hue | Q67: 0 | R67: =R66+1 -> 67 | S67: 710 | T67: 2.94871 | V67: R-Bin12 a | W67: -0.328418 | Y67: 710 | Z67: 2.94871 | AB67: G/C Hue | AC67: 0 | AN67: T-Bin11 b
A68: T-Bin12 a | B68: 0 | C68: T-Bin12 a | D68: -0.269201 | F68: 68 | G68: 715 | H68: 6.313056 | J68: R-Bin12 b | K68: 0 | M68: 715 | N68: 6.313056 | P68: C Lightness | Q68: 0 | R68: 68 | S68: 715 | T68: 1.94228 | V68: R-Bin12 b | W68: -0.944532 | Y68: 715 | Z68: 1.94228 | AB68: C Lightness | AC68: -3 | AN68: T-Bin12 a
A69: T-Bin12 b | B69: 0 | C69: T-Bin12 b | D69: -0.986379 | F69: 69 | G69: 720 | H69: 6.055872 | J69: R-Bin13 a | K69: 0 | M69: 720 | N69: 6.055872 | P69: C Chroma | Q69: 0 | R69: 69 | S69: 720 | T69: 0.82393 | V69: R-Bin13 a | W69: 0.16762 | Y69: 720 | Z69: 0.82393 | AB69: C Chroma | AC69: -3 | AN69: T-Bin12 b
A70: T-Bin13 a | B70: 0 | C70: T-Bin13 a | D70: 0.118526 | F70: 70 | G70: =IF(G69="","",IF(INDEX($A$1:$A$500,MATCH("Spe*",$A$1:$A$500,0)+F70)=0,"",INDEX($A$1:$A$500,MATCH("Spe*",$A$1:$A$500,0)+F70))) -> 725 | H70: =IF(H69="","",IF(INDEX($A$1:$A$500,MATCH("Spe*",$A$1:$A$500,0)+F70)=0,"",INDEX($B$1:$B$500,MATCH("Spe*",$A$1:$A$500,0)+F70))) -> 6.183983 | J70: R-Bin13 b | K70: 0 | M70: 725 | N70: 6.183983 | P70: C Hue | Q70: 0 | R70: 70 | S70: =IF(S69="","",IF(INDEX($C$1:$C$500,MATCH("Spe*",$C$1:$C$500,0)+R70)=0,"",INDEX($C$1:$C$500,MATCH("Spe*",$C$1:$C$500,0)+R70))) -> 725 | T70: =IF(T69="","",IF(INDEX($C$1:$C$500,MATCH("Spe*",$C$1:$C$500,0)+R70)=0,"",INDEX($D$1:$D$500,MATCH("Spe*",$C$1:$C$500,0)+R70))) -> 0.58525 | V70: R-Bin13 b | W70: -0.985852 | Y70: 725 | Z70: 0.58525 | AB70: C Hue | AC70: 0 | AN70: T-Bin13 a
A71: T-Bin13 b | B71: 0 | C71: T-Bin13 b | D71: -1.060868 | F71: 71 | G71: 730 | H71: 6.61534 | J71: R-Bin14 a | K71: 0 | M71: 730 | N71: 6.61534 | P71: C/B Lightness | Q71: 0 | R71: 71 | S71: 730 | T71: 0.51885 | V71: R-Bin14 a | W71: 0.461854 | Y71: 730 | Z71: 0.51885 | AB71: C/B Lightness | AC71: 3 | AN71: T-Bin13 b
A72: T-Bin14 a | B72: 0 | C72: T-Bin14 a | D72: 0.530972 | F72: 72 | G72: 735 | H72: 7.121744 | J72: R-Bin14 b | K72: 0 | M72: 735 | N72: 7.121744 | P72: C/B Chroma | Q72: 0 | R72: 72 | S72: 735 | T72: 0.55154 | V72: R-Bin14 b | W72: -0.886956 | Y72: 735 | Z72: 0.55154 | AB72: C/B Chroma | AC72: 0 | AN72: T-Bin14 a
A73: T-Bin14 b | B73: 0 | C73: T-Bin14 b | D73: -0.925939 | F73: 73 | G73: 740 | H73: 7.451564 | J73: R-Bin15 a | K73: 0 | M73: 740 | N73: 7.451564 | P73: C/B Hue | Q73: 0 | R73: 73 | S73: 740 | T73: 0.59488 | V73: R-Bin15 a | W73: 0.799754 | Y73: 740 | Z73: 0.59488 | AB73: C/B Hue | AC73: -5 | AN73: T-Bin14 b
A74: T-Bin15 a | B74: 0 | C74: T-Bin15 a | D74: 0.757366 | F74: 74 | G74: 745 | H74: 7.643743 | J74: R-Bin15 b | K74: 0 | M74: 745 | N74: 7.643743 | P74: B Lightness | Q74: 0 | R74: 74 | S74: 745 | T74: 0.63715 | V74: R-Bin15 b | W74: -0.600328 | Y74: 745 | Z74: 0.63715 | AB74: B Lightness | AC74: 1 | AN74: T-Bin15 a
A75: T-Bin15 b | B75: 0 | C75: T-Bin15 b | D75: -0.688001 | F75: 75 | G75: 750 | H75: 7.522743 | J75: R-Bin16 a | K75: =IF($A$1="",NA(),INDEX($B$1:$B$300,MATCH(J75,$A$1:$A$300,0))) -> 0 | M75: 750 | N75: 7.522743 | P75: B Chroma | Q75: 0 | R75: 75 | S75: 750 | T75: 0.58234 | V75: R-Bin16 a | W75: =IF($C$1="",NA(),INDEX($D$1:$D$300,MATCH(V75,$C$1:$C$300,0))) -> 0.986417 | Y75: 750 | Z75: 0.58234 | AB75: B Chroma | AC75: -1 | AN75: T-Bin15 b
A76: T-Bin16 a | B76: 0 | C76: T-Bin16 a | D76: 0.949989 | F76: 76 | G76: 755 | H76: 6.633342 | J76: R-Bin16 b | K76: 0 | M76: 755 | N76: 6.633342 | P76: B Hue | Q76: 0 | R76: 76 | S76: 755 | T76: 0.51899 | V76: R-Bin16 b | W76: -0.164259 | Y76: 755 | Z76: 0.51899 | AB76: B Hue | AC76: -2 | AN76: T-Bin16 a
A77: T-Bin16 b | B77: 0 | C77: T-Bin16 b | D77: -0.260487 | F77: 77 | G77: 760 | H77: 5.164568 | J77: T-Bin01 a | K77: 0 | M77: 760 | N77: 5.164568 | P77: B/M Lightness | Q77: 0 | R77: 77 | S77: 760 | T77: 0.53082 | V77: T-Bin01 a | W77: 0.879262 | Y77: 760 | Z77: 0.53082 | AB77: B/M Lightness | AC77: 3 | AN77: T-Bin16 b
A78: Rf_Bin01 | B78: 0 | C78: Rf_Bin01 | D78: 78 | F78: 78 | G78: 765 | H78: 5.17249 | J78: T-Bin01 b | K78: 0 | M78: 765 | N78: 5.17249 | P78: B/M Chroma | Q78: 0 | R78: 78 | S78: 765 | T78: 0.35545 | V78: T-Bin01 b | W78: 0.179411 | Y78: 765 | Z78: 0.35545 | AB78: B/M Chroma | AC78: -2 | AN78: Rf_Bin01
A79: Rf_Bin02 | B79: 0 | C79: Rf_Bin02 | D79: 91 | F79: 79 | G79: 770 | H79: 6.48655 | J79: T-Bin02 a | K79: 0 | M79: 770 | N79: 6.48655 | P79: B/M Hue | Q79: 0 | R79: 79 | S79: 770 | T79: 0.53188 | V79: T-Bin02 a | W79: 0.797134 | Y79: 770 | Z79: 0.53188 | AB79: B/M Hue | AC79: 4 | AN79: Rf_Bin02
A80: Rf_Bin03 | B80: 0 | C80: Rf_Bin03 | D80: 81 | F80: 80 | G80: 775 | H80: 7.151005 | J80: T-Bin02 b | K80: 0 | M80: 775 | N80: 7.151005 | P80: M Lightness | Q80: 0 | R80: 80 | S80: 775 | T80: 0.43961 | V80: T-Bin02 b | W80: 0.560921 | Y80: 775 | Z80: 0.43961 | AB80: M Lightness | AC80: 3 | AN80: Rf_Bin03
A81: Rf_Bin04 | B81: 0 | C81: Rf_Bin04 | D81: 76 | F81: 81 | G81: 780 | H81: 7.171795 | J81: T-Bin03 a | K81: 0 | M81: 780 | N81: 7.171795 | P81: M Chroma | Q81: 0 | R81: 81 | S81: 780 | T81: 0.55608 | V81: T-Bin03 a | W81: 0.463883 | Y81: 780 | Z81: 0.55608 | AB81: M Chroma | AC81: -2 | AN81: Rf_Bin04
A82: Rf_Bin05 | B82: 0 | C82: Rf_Bin05 | D82: 79 | F82: 82 | J82: T-Bin03 b | K82: 0 | P82: M Hue | Q82: 0 | R82: 82 | V82: T-Bin03 b | W82: 0.841867 | AB82: M Hue | AC82: 4 | AN82: Rf_Bin05
A83: Rf_Bin06 | B83: 0 | C83: Rf_Bin06 | D83: 90 | F83: 83 | J83: T-Bin04 a | K83: 0 | P83: M/R Lightness | Q83: 0 | R83: 83 | V83: T-Bin04 a | W83: 0.043273 | Y83: =IF(S83="",NA(),ROUND(S83,0)) ->  | Z83: =IF(T83="",NA(),T83) ->  | AB83: M/R Lightness | AC83: 4 | AN83: Rf_Bin06
A84: Rf_Bin07 | B84: 0 | C84: Rf_Bin07 | D84: 84 | F84: 84 | J84: T-Bin04 b | K84: 0 | P84: M/R Chroma | Q84: 0 | R84: 84 | V84: T-Bin04 b | W84: 1.036959 | AB84: M/R Chroma | AC84: 0 | AN84: Rf_Bin07
A85: Rf_Bin08 | B85: 0 | C85: Rf_Bin08 | D85: 85 | F85: 85 | J85: T-Bin05 a | K85: 0 | P85: M/R Hue | Q85: 0 | R85: 85 | V85: T-Bin05 a | W85: -0.212446 | AB85: M/R Hue | AC85: 4 | AN85: Rf_Bin08
A86: Rf_Bin09 | B86: 0 | C86: Rf_Bin09 | D86: 87 | F86: 86 | J86: T-Bin05 b | K86: 0 | R86: 86 | V86: T-Bin05 b | W86: 1.055511 | AN86: Rf_Bin09
A87: Rf_Bin10 | B87: 0 | C87: Rf_Bin10 | D87: 67 | F87: 87 | J87: T-Bin06 a | K87: 0 | R87: 87 | V87: T-Bin06 a | W87: -0.577882 | AN87: Rf_Bin10
A88: Rf_Bin11 | B88: 0 | C88: Rf_Bin11 | D88: 75 | F88: 88 | J88: T-Bin06 b | K88: 0 | R88: 88 | V88: T-Bin06 b | W88: 0.882361 | AN88: Rf_Bin11
A89: Rf_Bin12 | B89: 0 | C89: Rf_Bin12 | D89: 82 | F89: 89 | J89: T-Bin07 a | K89: 0 | R89: 89 | V89: T-Bin07 a | W89: -0.791004 | AN89: Rf_Bin12
A90: Rf_Bin13 | B90: 0 | C90: Rf_Bin13 | D90: 80 | F90: 90 | J90: T-Bin07 b | K90: 0 | R90: 90 | V90: T-Bin07 b | W90: 0.572846 | AN90: Rf_Bin13
A91: Rf_Bin14 | B91: 0 | C91: Rf_Bin14 | D91: 85 | F91: 91 | J91: T-Bin08 a | K91: 0 | R91: 91 | V91: T-Bin08 a | W91: -0.927338 | AN91: Rf_Bin14
A92: Rf_Bin15 | B92: 0 | C92: Rf_Bin15 | D92: 81 | F92: 92 | J92: T-Bin08 b | K92: 0 | R92: 92 | V92: T-Bin08 b | W92: 0.187939 | AN92: Rf_Bin15
A93: Rf_Bin16 | B93: 0 | C93: Rf_Bin16 | D93: 78 | F93: 93 | J93: T-Bin09 a | K93: 0 | R93: 93 | V93: T-Bin09 a | W93: -0.918624 | AN93: Rf_Bin16
A94: Chromashift01 [%] | B94: 0 | C94: Chromashift01 [%] | D94: -10 | F94: 94 | J94: T-Bin09 b | K94: 0 | R94: 94 | V94: T-Bin09 b | W94: -0.084934 | AN94: Chromashift01 [%]
A95: Chromashift02 [%] | B95: 0 | C95: Chromashift02 [%] | D95: -3 | F95: 95 | J95: T-Bin10 a | K95: 0 | R95: 95 | V95: T-Bin10 a | W95: -0.688981 | AN95: Chromashift02 [%]
A96: Chromashift03 [%] | B96: 0 | C96: Chromashift03 [%] | D96: -4 | F96: 96 | J96: T-Bin10 b | K96: 0 | R96: 96 | V96: T-Bin10 b | W96: -0.539379 | AN96: Chromashift03 [%]
A97: Chromashift04 [%] | B97: 0 | C97: Chromashift04 [%] | D97: 3 | F97: 97 | J97: T-Bin11 a | K97: 0 | R97: 97 | V97: T-Bin11 a | W97: -0.436327 | AN97: Chromashift04 [%]
A98: Chromashift05 [%] | B98: 0 | C98: Chromashift05 [%] | D98: 8 | F98: 98 | J98: T-Bin11 b | K98: 0 | R98: 98 | V98: T-Bin11 b | W98: -0.843627 | Y98: =IF(S98="",NA(),ROUND(S98,0)) ->  | Z98: =IF(T98="",NA(),T98) ->  | AN98: Chromashift05 [%]
A99: Chromashift06 [%] | B99: 0 | C99: Chromashift06 [%] | D99: 5 | F99: 99 | J99: T-Bin12 a | K99: 0 | R99: 99 | V99: T-Bin12 a | W99: -0.269201 | AN99: Chromashift06 [%]
A100: Chromashift07 [%] | B100: 0 | C100: Chromashift07 [%] | D100: -2 | F100: 100 | J100: T-Bin12 b | K100: 0 | R100: 100 | V100: T-Bin12 b | W100: -0.986379 | AN100: Chromashift07 [%]
A101: Chromashift08 [%] | B101: 0 | C101: Chromashift08 [%] | D101: -5 | F101: 101 | J101: T-Bin13 a | K101: 0 | R101: 101 | V101: T-Bin13 a | W101: 0.118526 | AN101: Chromashift08 [%]
A102: Chromashift09 [%] | B102: 0 | C102: Chromashift09 [%] | D102: -8 | F102: 102 | J102: T-Bin13 b | K102: 0 | R102: 102 | V102: T-Bin13 b | W102: -1.060868 | AN102: Chromashift09 [%]
A103: Chromashift10 [%] | B103: 0 | C103: Chromashift10 [%] | D103: -13 | F103: 103 | J103: T-Bin14 a | K103: 0 | R103: 103 | V103: T-Bin14 a | W103: 0.530972 | AN103: Chromashift10 [%]
A104: Chromashift11 [%] | B104: 0 | C104: Chromashift11 [%] | D104: -6 | F104: 104 | J104: T-Bin14 b | K104: 0 | R104: 104 | V104: T-Bin14 b | W104: -0.925939 | AN104: Chromashift11 [%]
A105: Chromashift12 [%] | B105: 0 | C105: Chromashift12 [%] | D105: 3 | F105: 105 | J105: T-Bin15 a | K105: 0 | R105: 105 | V105: T-Bin15 a | W105: 0.757366 | AN105: Chromashift12 [%]
A106: Chromashift13 [%] | B106: 0 | C106: Chromashift13 [%] | D106: 6 | F106: 106 | J106: T-Bin15 b | K106: 0 | R106: 106 | V106: T-Bin15 b | W106: -0.688001 | AN106: Chromashift13 [%]
A107: Chromashift14 [%] | B107: 0 | C107: Chromashift14 [%] | D107: 7 | F107: 107 | J107: T-Bin16 a | K107: =IF($A$1="",NA(),INDEX($B$1:$B$300,MATCH(J107,$A$1:$A$300,0))) -> 0 | R107: 107 | V107: T-Bin16 a | W107: =IF($C$1="",NA(),INDEX($D$1:$D$300,MATCH(V107,$C$1:$C$300,0))) -> 0.949989 | AN107: Chromashift14 [%]
A108: Chromashift15 [%] | B108: 0 | C108: Chromashift15 [%] | D108: 1 | F108: 108 | J108: T-Bin16 b | K108: 0 | R108: 108 | V108: T-Bin16 b | W108: -0.260487 | AN108: Chromashift15 [%]
A109: Chromashift16 [%] | B109: 0 | C109: Chromashift16 [%] | D109: -2 | F109: 109 | I109: 1 | J109: Rf_Bin01 | K109: 0 | R109: 109 | U109: 1 | V109: Rf_Bin01 | W109: 78 | AN109: Chromashift16 [%]
A110: Flicker Index | B110: 0.001261 | C110: Flicker Index | D110: 0.079 | F110: 110 | I110: 2 | J110: Rf_Bin02 | K110: 0 | R110: 110 | U110: 2 | V110: Rf_Bin02 | W110: 91 | AN110: Flicker Index
A111: Flicker [Hz] | B111: 0 | C111: Flicker [Hz] | D111: 99.9 | F111: 111 | I111: 3 | J111: Rf_Bin03 | K111: 0 | R111: 111 | U111: 3 | V111: Rf_Bin03 | W111: 81 | AN111: Flicker [Hz]
A112: Flicker [%] | B112: 1.052689 | C112: Flicker [%] | D112: 27.7 | F112: 112 | I112: 4 | J112: Rf_Bin04 | K112: 0 | R112: 112 | U112: 4 | V112: Rf_Bin04 | W112: 76 | AN112: Flicker [%]
A113: Ra | B113: 97.45 | C113: Ra | D113: 81.76 | F113: 113 | I113: 5 | J113: Rf_Bin05 | K113: 0 | R113: 113 | U113: 5 | V113: Rf_Bin05 | W113: 79 | AN113: Ra
A114: Re | B114: 96.51 | C114: Re | D114: 72.74 | F114: 114 | I114: 6 | J114: Rf_Bin06 | K114: 0 | R114: 114 | U114: 6 | V114: Rf_Bin06 | W114: 90 | AN114: Re
A115: GAI | B115: 92.84 | C115: GAI | D115: 67.58 | F115: 115 | I115: 7 | J115: Rf_Bin07 | K115: 0 | R115: 115 | U115: 7 | V115: Rf_Bin07 | W115: 84 | AN115: GAI
A116: R1 | B116: 96.71 | C116: R1 | D116: 92.13 | F116: 116 | I116: 8 | J116: Rf_Bin08 | K116: 0 | R116: 116 | U116: 8 | V116: Rf_Bin08 | W116: 85 | AN116: R1
A117: R2 | B117: 98.33 | C117: R2 | D117: 90.56 | F117: 117 | I117: 9 | J117: Rf_Bin09 | K117: 0 | R117: 117 | U117: 9 | V117: Rf_Bin09 | W117: 87 | AN117: R2
A118: R3 | B118: 99.17 | C118: R3 | D118: 60.36 | F118: 118 | I118: 10 | J118: Rf_Bin10 | K118: 0 | R118: 118 | U118: 10 | V118: Rf_Bin10 | W118: 67 | AN118: R3
A119: R4 | B119: 96.5 | C119: R4 | D119: 87.93 | F119: 119 | I119: 11 | J119: Rf_Bin11 | K119: 0 | R119: 119 | U119: 11 | V119: Rf_Bin11 | W119: 75 | AN119: R4
A120: R5 | B120: 96.93 | C120: R5 | D120: 82.79 | F120: 120 | I120: 12 | J120: Rf_Bin12 | K120: 0 | R120: 120 | U120: 12 | V120: Rf_Bin12 | W120: 82 | AN120: R5
A121: R6 | B121: 98.08 | C121: R6 | D121: 77.28 | F121: 121 | I121: 13 | J121: Rf_Bin13 | K121: 0 | R121: 121 | U121: 13 | V121: Rf_Bin13 | W121: 80 | AN121: R6
A122: R7 | B122: 98.45 | C122: R7 | D122: 91.05 | F122: 122 | I122: 14 | J122: Rf_Bin14 | K122: 0 | R122: 122 | U122: 14 | V122: Rf_Bin14 | W122: 85 | AN122: R7
A123: R8 | B123: 95.4 | C123: R8 | D123: 71.98 | F123: 123 | I123: 15 | J123: Rf_Bin15 | K123: 0 | R123: 123 | U123: 15 | V123: Rf_Bin15 | W123: 81 | AN123: R8
A124: R9 | B124: 86.96 | C124: R9 | D124: 7.09 | F124: 124 | I124: 16 | J124: Rf_Bin16 | K124: 0 | R124: 124 | U124: 16 | V124: Rf_Bin16 | W124: 78 | AN124: R9
A125: R10 | B125: 96.71 | C125: R10 | D125: 48.9 | F125: 125 | I125: 1 | J125: Chromashift01 [%] | K125: 0 | R125: 125 | U125: 1 | V125: Chromashift01 [%] | W125: -10 | AN125: R10
A126: R11 | B126: 96.02 | C126: R11 | D126: 70.99 | F126: 126 | I126: 2 | J126: Chromashift02 [%] | K126: 0 | R126: 126 | U126: 2 | V126: Chromashift02 [%] | W126: -3 | AN126: R11
A127: R12 | B127: 96.51 | C127: R12 | D127: 53.37 | F127: 127 | I127: 3 | J127: Chromashift03 [%] | K127: 0 | R127: 127 | U127: 3 | V127: Chromashift03 [%] | W127: -4 | AN127: R12
A128: R13 | B128: 97.05 | C128: R13 | D128: 93.49 | F128: 128 | I128: 4 | J128: Chromashift04 [%] | K128: 0 | R128: 128 | U128: 4 | V128: Chromashift04 [%] | W128: 3 | AN128: R13
A129: R14 | B129: 99.3 | C129: R14 | D129: 73.55 | F129: 129 | I129: 5 | J129: Chromashift05 [%] | K129: 0 | R129: 129 | U129: 5 | V129: Chromashift05 [%] | W129: 8 | AN129: R14
A130: R15 | B130: 95.47 | C130: R15 | D130: 89.59 | F130: 130 | I130: 6 | J130: Chromashift06 [%] | K130: 0 | M130: =IF(G130="",NA(),ROUND(G130,0)) ->  | N130: =IF(H130="",NA(),H130) ->  | R130: 130 | U130: 6 | V130: Chromashift06 [%] | W130: 5 | AN130: R15
A131: x | B131: 0.3186 | C131: x | D131: 0.3926 | F131: =F130+1 -> 131 | I131: 7 | J131: Chromashift07 [%] | K131: 0 | R131: =R130+1 -> 131 | U131: 7 | V131: Chromashift07 [%] | W131: -2 | AN131: x
A132: y | B132: 0.3401 | C132: y | D132: 0.4006 | F132: 132 | I132: 8 | J132: Chromashift08 [%] | K132: 0 | R132: 132 | U132: 8 | V132: Chromashift08 [%] | W132: -5 | AN132: y
A133: u | B133: 0.1978 | C133: u' | D133: 0.2236 | F133: 133 | I133: 9 | J133: Chromashift09 [%] | K133: 0 | R133: 133 | U133: 9 | V133: Chromashift09 [%] | W133: -8 | AN133: u
A134: v | B134: 0.3167 | C134: v' | D134: 0.5134 | F134: 134 | G134: =IF(G133="","",IF(INDEX($A$1:$A$500,MATCH("Spe*",$A$1:$A$500,0)+F134)=0,"",INDEX($A$1:$A$500,MATCH("Spe*",$A$1:$A$500,0)+F134))) ->  | H134: =IF(H133="","",IF(INDEX($A$1:$A$500,MATCH("Spe*",$A$1:$A$500,0)+F134)=0,"",INDEX($B$1:$B$500,MATCH("Spe*",$A$1:$A$500,0)+F134))) ->  | I134: 10 | J134: Chromashift10 [%] | K134: 0 | R134: 134 | S134: =IF(S133="","",IF(INDEX($C$1:$C$500,MATCH("Spe*",$C$1:$C$500,0)+R134)=0,"",INDEX($C$1:$C$500,MATCH("Spe*",$C$1:$C$500,0)+R134))) ->  | T134: =IF(T133="","",IF(INDEX($C$1:$C$500,MATCH("Spe*",$C$1:$C$500,0)+R134)=0,"",INDEX($D$1:$D$500,MATCH("Spe*",$C$1:$C$500,0)+R134))) ->  | U134: 10 | V134: Chromashift10 [%] | W134: -13 | AN134: v
A135: u' | B135: 0.1978 | C135: u | D135: 0.2236 | F135: 135 | I135: 11 | J135: Chromashift11 [%] | K135: 0 | R135: 135 | U135: 11 | V135: Chromashift11 [%] | W135: -6 | AN135: u'
A136: v' | B136: 0.475 | C136: v | D136: 0.3423 | F136: 136 | I136: 12 | J136: Chromashift12 [%] | K136: 0 | R136: 136 | U136: 12 | V136: Chromashift12 [%] | W136: 3 | AN136: v'
A137: PPFD | B137: 10.76 | C137: PPFD | D137: 7.87 | F137: 137 | I137: 13 | J137: Chromashift13 [%] | K137: 0 | R137: 137 | U137: 13 | V137: Chromashift13 [%] | W137: 6 | AN137: PPFD
A138: PPFD_UV | B138: 0.2 | C138: PPFD_UV | D138: 0.03 | F138: 138 | I138: 14 | J138: Chromashift14 [%] | K138: 0 | R138: 138 | U138: 14 | V138: Chromashift14 [%] | W138: 7 | AN138: PPFD_UV
A139: PPFD_Blau | B139: 3.09 | C139: PPFD_Blau | D139: 1.6 | F139: 139 | I139: 15 | J139: Chromashift15 [%] | K139: =IF($A$1="",NA(),INDEX($B$1:$B$300,MATCH(J139,$A$1:$A$300,0))) -> 0 | R139: 139 | U139: 15 | V139: Chromashift15 [%] | W139: =IF($C$1="",NA(),INDEX($D$1:$D$300,MATCH(V139,$C$1:$C$300,0))) -> 1 | AN139: PPFD_Blau
A140: PPFD_Grün | B140: 3.97 | C140: PPFD_Grün | D140: 3.44 | F140: 140 | I140: 16 | J140: Chromashift16 [%] | K140: 0 | R140: 140 | U140: 16 | V140: Chromashift16 [%] | W140: -2 | AN140: PPFD_Grün
A141: PPFD_Rot | B141: 3.7 | C141: PPFD_Rot | D141: 2.83 | F141: 141 | R141: 141 | AN141: PPFD_Rot
A142: PPFD_FR | B142: 3.26 | C142: PPFD_FR | D142: 0.46 | F142: 142 | J142: PPFD | K142: =IF($A$1="",NA(),INDEX($B$1:$B$300,MATCH(J142,$A$1:$A$300,0))) -> 10.76 | R142: 142 | V142: PPFD | W142: =IF($C$1="",NA(),INDEX($D$1:$D$300,MATCH(V142,$C$1:$C$300,0))) -> 7.87 | AN142: PPFD_FR
A143: TLCI | B143: 100 | C143: TLCI | D143: 59 | F143: 143 | J143: PPFD_UV | K143: =IF($A$1="",NA(),INDEX($B$1:$B$300,MATCH(J143,$A$1:$A$300,0))) -> 0.2 | R143: 143 | V143: PPFD_UV | W143: =IF($C$1="",NA(),INDEX($D$1:$D$300,MATCH(V143,$C$1:$C$300,0))) -> 0.03 | AN143: TLCI
A144: Q1 | B144: 99 | C144: Q1 | D144: 87 | F144: 144 | J144: PPFD_Blau | R144: 144 | V144: PPFD_Blau | AN144: Q1
A145: Q2 | B145: 99 | C145: Q2 | D145: 95 | F145: 145 | J145: PPFD_Blue | K145: =IF(ISNA(MATCH(J144,$A$1:$A$300,0)),IF($A$1="",NA(),INDEX($B$1:$B$300,MATCH(J145,$A$1:$A$300,0))),IF($A$1="",NA(),INDEX($B$1:$B$300,MATCH(J144,$A$1:$A$300,0)))) -> 3.09 | R145: 145 | V145: PPFD_Blue | W145: =IF(ISNA(MATCH(V144,$C$1:$C$300,0)),IF($C$1="",NA(),INDEX($D$1:$D$300,MATCH(V145,$C$1:$C$300,0))),IF($C$1="",NA(),INDEX($D$1:$D$300,MATCH(V144,$C$1:$C$300,0)))) -> 1.6 | AN145: Q2
A146: Q3 | B146: 99 | C146: Q3 | D146: 95 | F146: 146 | J146: PPFD_Grün | R146: 146 | V146: PPFD_Grün | AN146: Q3
A147: Q4 | B147: 99 | C147: Q4 | D147: 73 | F147: 147 | J147: PPFD_Green | K147: =IF(ISNA(MATCH(J146,$A$1:$A$300,0)),IF($A$1="",NA(),INDEX($B$1:$B$300,MATCH(J147,$A$1:$A$300,0))),IF($A$1="",NA(),INDEX($B$1:$B$300,MATCH(J146,$A$1:$A$300,0)))) -> 3.97 | R147: 147 | V147: PPFD_Green | W147: =IF(ISNA(MATCH(V146,$C$1:$C$300,0)),IF($C$1="",NA(),INDEX($D$1:$D$300,MATCH(V147,$C$1:$C$300,0))),IF($C$1="",NA(),INDEX($D$1:$D$300,MATCH(V146,$C$1:$C$300,0)))) -> 3.44 | AN147: Q4
A148: Q5 | B148: 99 | C148: Q5 | D148: 55 | F148: 148 | J148: PPFD_Rot | R148: 148 | V148: PPFD_Rot | AN148: Q5
A149: Q6 | B149: 99 | C149: Q6 | D149: 55 | F149: 149 | J149: PPFD_Red | K149: =IF(ISNA(MATCH(J148,$A$1:$A$300,0)),IF($A$1="",NA(),INDEX($B$1:$B$300,MATCH(J149,$A$1:$A$300,0))),IF($A$1="",NA(),INDEX($B$1:$B$300,MATCH(J148,$A$1:$A$300,0)))) -> 3.7 | R149: 149 | V149: PPFD_Red | W149: =IF(ISNA(MATCH(V148,$C$1:$C$300,0)),IF($C$1="",NA(),INDEX($D$1:$D$300,MATCH(V149,$C$1:$C$300,0))),IF($C$1="",NA(),INDEX($D$1:$D$300,MATCH(V148,$C$1:$C$300,0)))) -> 2.83 | AN149: Q6
A150: Q7 | B150: 99 | C150: Q7 | D150: 99 | F150: 150 | J150: PPFD_FR | K150: =IF($A$1="",NA(),INDEX($B$1:$B$300,MATCH(J150,$A$1:$A$300,0))) -> 3.26 | R150: 150 | V150: PPFD_FR | W150: =IF($C$1="",NA(),INDEX($D$1:$D$300,MATCH(V150,$C$1:$C$300,0))) -> 0.46 | AN150: Q7
A151: Q8 | B151: 99 | C151: Q8 | D151: 87 | F151: 151 | R151: 151 | AN151: Q8
A152: Q9 | B152: 99 | C152: Q9 | D152: 90 | F152: 152 | R152: 152 | AN152: Q9
A153: Q10 | B153: 99 | C153: Q10 | D153: 98 | F153: 153 | R153: 153 | AN153: Q10
A154: Q11 | B154: 99 | C154: Q11 | D154: 34 | F154: 154 | R154: 154 | AN154: Q11
A155: Q12 | B155: 99 | C155: Q12 | D155: 80 | F155: 155 | R155: 155 | AN155: Q12
A156: Q13 | B156: 99 | C156: Q13 | D156: 42 | F156: 156 | R156: 156 | AN156: Q13
A157: Q14 | B157: 99 | C157: Q14 | D157: 90 | F157: 157 | R157: 157 | AN157: Q14
A158: Q15 | B158: 99 | C158: Q15 | D158: 60 | F158: 158 | R158: 158 | AN158: Q15
A159: Q16 | B159: 99 | C159: Q16 | D159: 59 | F159: 159 | R159: 159 | AN159: Q16
A160: Q17 | B160: 99 | C160: Q17 | D160: 63 | F160: 160 | R160: 160 | AN160: Q17
A161: Q18 | B161: 99 | C161: Q18 | D161: 43 | F161: 161 | R161: 161 | AN161: Q18
A162: R Lightness | B162: 0 | C162: R Lightness | D162: 4 | F162: 162 | R162: 162 | Y162: =IF(S162="",NA(),ROUND(S162,0)) ->  | Z162: =IF(T162="",NA(),T162) ->  | AN162: R Lightness
A163: R Chroma | B163: 0 | C163: R Chroma | D163: 2 | F163: 163 | R163: 163 | AN163: R Chroma
A164: R Hue | B164: 0 | C164: R Hue | D164: 0 | F164: 164 | R164: 164 | AN164: R Hue
A165: R/Y Lightness | B165: 0 | C165: R/Y Lightness | D165: 0 | F165: 165 | R165: 165 | AN165: R/Y Lightness
A166: R/Y Chroma | B166: 0 | C166: R/Y Chroma | D166: 0 | F166: 166 | R166: 166 | AN166: R/Y Chroma
A167: R/Y Hue | B167: 0 | C167: R/Y Hue | D167: 0 | F167: 167 | R167: 167 | AN167: R/Y Hue
A168: Y Lightness | B168: 0 | C168: Y Lightness | D168: -2 | F168: 168 | R168: 168 | AN168: Y Lightness
A169: Y Chroma | B169: 0 | C169: Y Chroma | D169: 0 | F169: 169 | R169: 169 | AN169: Y Chroma
A170: Y Hue | B170: 0 | C170: Y Hue | D170: -5 | F170: 170 | R170: 170 | AN170: Y Hue
A171: Y/G Lightness | B171: 0 | C171: Y/G Lightness | D171: -2 | F171: 171 | R171: 171 | AN171: Y/G Lightness
A172: Y/G Chroma | B172: 0 | C172: Y/G Chroma | D172: -3 | F172: 172 | R172: 172 | AN172: Y/G Chroma
A173: Y/G Hue | B173: 0 | C173: Y/G Hue | D173: -2 | F173: 173 | R173: 173 | AN173: Y/G Hue
A174: G Lightness | B174: 0 | C174: G Lightness | D174: -3 | F174: 174 | R174: 174 | AN174: G Lightness
A175: G Chroma | B175: 0 | C175: G Chroma | D175: -3 | F175: 175 | R175: 175 | AN175: G Chroma
A176: G Hue | B176: 0 | C176: G Hue | D176: 0 | F176: 176 | R176: 176 | AN176: G Hue
A177: G/C Lightness | B177: 0 | C177: G/C Lightness | D177: -3 | F177: 177 | R177: 177 | AN177: G/C Lightness
A178: G/C Chroma | B178: 0 | C178: G/C Chroma | D178: -3 | F178: 178 | R178: 178 | AN178: G/C Chroma
A179: G/C Hue | B179: 0 | C179: G/C Hue | D179: 0 | F179: 179 | R179: 179 | AN179: G/C Hue
A180: C Lightness | B180: 0 | C180: C Lightness | D180: -3 | F180: 180 | R180: 180 | AN180: C Lightness
A181: C Chroma | B181: 0 | C181: C Chroma | D181: -3 | F181: 181 | R181: 181 | AN181: C Chroma
A182: C Hue | B182: 0 | C182: C Hue | D182: 0 | F182: 182 | R182: 182 | AN182: C Hue
A183: C/B Lightness | B183: 0 | C183: C/B Lightness | D183: 3 | F183: 183 | R183: 183 | AN183: C/B Lightness
A184: C/B Chroma | B184: 0 | C184: C/B Chroma | D184: 0 | F184: 184 | R184: 184 | AN184: C/B Chroma
A185: C/B Hue | B185: 0 | C185: C/B Hue | D185: -5 | F185: 185 | R185: 185 | AN185: C/B Hue
A186: B Lightness | B186: 0 | C186: B Lightness | D186: 1 | F186: 186 | R186: 186 | AN186: B Lightness
A187: B Chroma | B187: 0 | C187: B Chroma | D187: -1 | F187: 187 | R187: 187 | AN187: B Chroma
A188: B Hue | B188: 0 | C188: B Hue | D188: -2 | F188: 188 | R188: 188 | AN188: B Hue
A189: B/M Lightness | B189: 0 | C189: B/M Lightness | D189: 3 | F189: 189 | R189: 189 | AN189: B/M Lightness
A190: B/M Chroma | B190: 0 | C190: B/M Chroma | D190: -2 | F190: 190 | R190: 190 | AN190: B/M Chroma
A191: B/M Hue | B191: 0 | C191: B/M Hue | D191: 4 | F191: 191 | R191: 191 | AN191: B/M Hue
A192: M Lightness | B192: 0 | C192: M Lightness | D192: 3 | F192: 192 | R192: 192 | AN192: M Lightness
A193: M Chroma | B193: 0 | C193: M Chroma | D193: -2 | F193: 193 | R193: 193 | AN193: M Chroma
A194: M Hue | B194: 0 | C194: M Hue | D194: 4 | F194: 194 | M194: =IF(G194="",NA(),ROUND(G194,0)) ->  | N194: =IF(H194="",NA(),H194) ->  | R194: 194 | AN194: M Hue
A195: M/R Lightness | B195: 0 | C195: M/R Lightness | D195: 4 | F195: =F194+1 -> 195 | R195: =R194+1 -> 195 | AN195: M/R Lightness
A196: M/R Chroma | B196: 0 | C196: M/R Chroma | D196: 0 | F196: 196 | R196: 196 | AN196: M/R Chroma
A197: M/R Hue | B197: 0 | C197: M/R Hue | D197: 4 | F197: 197 | R197: 197 | AN197: M/R Hue
A198: Lambda Peak [nm] | B198: 459 | C198: Lambda Peak [nm] | D198: 544 | F198: 198 | G198: =IF(G197="","",IF(INDEX($A$1:$A$500,MATCH("Spe*",$A$1:$A$500,0)+F198)=0,"",INDEX($A$1:$A$500,MATCH("Spe*",$A$1:$A$500,0)+F198))) ->  | H198: =IF(H197="","",IF(INDEX($A$1:$A$500,MATCH("Spe*",$A$1:$A$500,0)+F198)=0,"",INDEX($B$1:$B$500,MATCH("Spe*",$A$1:$A$500,0)+F198))) ->  | R198: 198 | S198: =IF(S197="","",IF(INDEX($C$1:$C$500,MATCH("Spe*",$C$1:$C$500,0)+R198)=0,"",INDEX($C$1:$C$500,MATCH("Spe*",$C$1:$C$500,0)+R198))) ->  | T198: =IF(T197="","",IF(INDEX($C$1:$C$500,MATCH("Spe*",$C$1:$C$500,0)+R198)=0,"",INDEX($D$1:$D$500,MATCH("Spe*",$C$1:$C$500,0)+R198))) ->  | AN198: Lambda Peak [nm]
A199: Lambda Peak | B199: 9.54342 | C199: Lambda Peak | D199: 33.22699 | F199: 199 | R199: 199 | AN199: Lambda Peak
A200: Farbreinheit [%] | B200: 4.6 | C200: Farbreinheit [%] | D200: 38 | F200: 200 | R200: 200 | AN200: Farbreinheit [%]
... 600 more rows

Sheet Version 2.3 Base
